{"text_format":"3","workbook":"xlsx","n_sheets":12,"sheets":["Leden","Únor","Březen","Duben","Květen","Červen","Červenec","Srpen","Září","Říjen","Listopad","Prosinec"],"not_rendered":{"images":26,"defined_names":25},"read":"whole","date_system":"1900"}

{"sheet":"Leden","index":0,"n_rows":15,"n_cols":11,"rows_kept":15,"merged":[[2,1,2,5],[14,3,14,7],[15,3,15,7]]}
[{"$nulls":10},"VYBERTE ROK:"]
[{"$nulls":10},{"$f":"YEAR(TODAY())","v":2018}]
[null,{"$f":"UPPER(TEXT(DATE(RokKalendáře,1,1),\"mmmm rrrr\"))","v":"LEDEN 2018"}]
[null,"PONDĚLÍ","ÚTERÝ","STŘEDA","ČTVRTEK","PÁTEK","SOBOTA","NEDĚLE"]
[null,{"$f":"IF(DAY(Ne1Led)=1,\"\",IF(AND(YEAR(Ne1Led+1)=RokKalendáře,MONTH(Ne1Led+1)=1),Ne1Led+1,\"\"))","v":"2018-01-01"},{"$f":"IF(DAY(Ne1Led)=1,\"\",IF(AND(YEAR(Ne1Led+2)=RokKalendáře,MONTH(Ne1Led+2)=1),Ne1Led+2,\"\"))","v":"2018-01-02"},{"$f":"IF(DAY(Ne1Led)=1,\"\",IF(AND(YEAR(Ne1Led+3)=RokKalendáře,MONTH(Ne1Led+3)=1),Ne1Led+3,\"\"))","v":"2018-01-03"},{"$f":"IF(DAY(Ne1Led)=1,\"\",IF(AND(YEAR(Ne1Led+4)=RokKalendáře,MONTH(Ne1Led+4)=1),Ne1Led+4,\"\"))","v":"2018-01-04"},{"$f":"IF(DAY(Ne1Led)=1,\"\",IF(AND(YEAR(Ne1Led+5)=RokKalendáře,MONTH(Ne1Led+5)=1),Ne1Led+5,\"\"))","v":"2018-01-05"},{"$f":"IF(DAY(Ne1Led)=1,\"\",IF(AND(YEAR(Ne1Led+6)=RokKalendáře,MONTH(Ne1Led+6)=1),Ne1Led+6,\"\"))","v":"2018-01-06"},{"$f":"IF(DAY(Ne1Led)=1,IF(AND(YEAR(Ne1Led)=RokKalendáře,MONTH(Ne1Led)=1),Ne1Led,\"\"),IF(AND(YEAR(Ne1Led+7)=RokKalendáře,MONTH(Ne1Led+7)=1),Ne1Led+7,\"\"))","v":"2018-01-07"}]
[]
[null,{"$f":"IF(DAY(Ne1Led)=1,IF(AND(YEAR(Ne1Led+1)=RokKalendáře,MONTH(Ne1Led+1)=1),Ne1Led+1,\"\"),IF(AND(YEAR(Ne1Led+8)=RokKalendáře,MONTH(Ne1Led+8)=1),Ne1Led+8,\"\"))","v":"2018-01-08"},{"$f":"IF(DAY(Ne1Led)=1,IF(AND(YEAR(Ne1Led+2)=RokKalendáře,MONTH(Ne1Led+2)=1),Ne1Led+2,\"\"),IF(AND(YEAR(Ne1Led+9)=RokKalendáře,MONTH(Ne1Led+9)=1),Ne1Led+9,\"\"))","v":"2018-01-09"},{"$f":"IF(DAY(Ne1Led)=1,IF(AND(YEAR(Ne1Led+3)=RokKalendáře,MONTH(Ne1Led+3)=1),Ne1Led+3,\"\"),IF(AND(YEAR(Ne1Led+10)=RokKalendáře,MONTH(Ne1Led+10)=1),Ne1Led+10,\"\"))","v":"2018-01-10"},{"$f":"IF(DAY(Ne1Led)=1,IF(AND(YEAR(Ne1Led+4)=RokKalendáře,MONTH(Ne1Led+4)=1),Ne1Led+4,\"\"),IF(AND(YEAR(Ne1Led+11)=RokKalendáře,MONTH(Ne1Led+11)=1),Ne1Led+11,\"\"))","v":"2018-01-11"},{"$f":"IF(DAY(Ne1Led)=1,IF(AND(YEAR(Ne1Led+5)=RokKalendáře,MONTH(Ne1Led+5)=1),Ne1Led+5,\"\"),IF(AND(YEAR(Ne1Led+12)=RokKalendáře,MONTH(Ne1Led+12)=1),Ne1Led+12,\"\"))","v":"2018-01-12"},{"$f":"IF(DAY(Ne1Led)=1,IF(AND(YEAR(Ne1Led+6)=RokKalendáře,MONTH(Ne1Led+6)=1),Ne1Led+6,\"\"),IF(AND(YEAR(Ne1Led+13)=RokKalendáře,MONTH(Ne1Led+13)=1),Ne1Led+13,\"\"))","v":"2018-01-13"},{"$f":"IF(DAY(Ne1Led)=1,IF(AND(YEAR(Ne1Led+7)=RokKalendáře,MONTH(Ne1Led+7)=1),Ne1Led+7,\"\"),IF(AND(YEAR(Ne1Led+14)=RokKalendáře,MONTH(Ne1Led+14)=1),Ne1Led+14,\"\"))","v":"2018-01-14"}]
[]
[null,{"$f":"IF(DAY(Ne1Led)=1,IF(AND(YEAR(Ne1Led+8)=RokKalendáře,MONTH(Ne1Led+8)=1),Ne1Led+8,\"\"),IF(AND(YEAR(Ne1Led+15)=RokKalendáře,MONTH(Ne1Led+15)=1),Ne1Led+15,\"\"))","v":"2018-01-15"},{"$f":"IF(DAY(Ne1Led)=1,IF(AND(YEAR(Ne1Led+9)=RokKalendáře,MONTH(Ne1Led+9)=1),Ne1Led+9,\"\"),IF(AND(YEAR(Ne1Led+16)=RokKalendáře,MONTH(Ne1Led+16)=1),Ne1Led+16,\"\"))","v":"2018-01-16"},{"$f":"IF(DAY(Ne1Led)=1,IF(AND(YEAR(Ne1Led+10)=RokKalendáře,MONTH(Ne1Led+10)=1),Ne1Led+10,\"\"),IF(AND(YEAR(Ne1Led+17)=RokKalendáře,MONTH(Ne1Led+17)=1),Ne1Led+17,\"\"))","v":"2018-01-17"},{"$f":"IF(DAY(Ne1Led)=1,IF(AND(YEAR(Ne1Led+11)=RokKalendáře,MONTH(Ne1Led+11)=1),Ne1Led+11,\"\"),IF(AND(YEAR(Ne1Led+18)=RokKalendáře,MONTH(Ne1Led+18)=1),Ne1Led+18,\"\"))","v":"2018-01-18"},{"$f":"IF(DAY(Ne1Led)=1,IF(AND(YEAR(Ne1Led+12)=RokKalendáře,MONTH(Ne1Led+12)=1),Ne1Led+12,\"\"),IF(AND(YEAR(Ne1Led+19)=RokKalendáře,MONTH(Ne1Led+19)=1),Ne1Led+19,\"\"))","v":"2018-01-19"},{"$f":"IF(DAY(Ne1Led)=1,IF(AND(YEAR(Ne1Led+13)=RokKalendáře,MONTH(Ne1Led+13)=1),Ne1Led+13,\"\"),IF(AND(YEAR(Ne1Led+20)=RokKalendáře,MONTH(Ne1Led+20)=1),Ne1Led+20,\"\"))","v":"2018-01-20"},{"$f":"IF(DAY(Ne1Led)=1,IF(AND(YEAR(Ne1Led+14)=RokKalendáře,MONTH(Ne1Led+14)=1),Ne1Led+14,\"\"),IF(AND(YEAR(Ne1Led+21)=RokKalendáře,MONTH(Ne1Led+21)=1),Ne1Led+21,\"\"))","v":"2018-01-21"}]
[]
[null,{"$f":"IF(DAY(Ne1Led)=1,IF(AND(YEAR(Ne1Led+15)=RokKalendáře,MONTH(Ne1Led+15)=1),Ne1Led+15,\"\"),IF(AND(YEAR(Ne1Led+22)=RokKalendáře,MONTH(Ne1Led+22)=1),Ne1Led+22,\"\"))","v":"2018-01-22"},{"$f":"IF(DAY(Ne1Led)=1,IF(AND(YEAR(Ne1Led+16)=RokKalendáře,MONTH(Ne1Led+16)=1),Ne1Led+16,\"\"),IF(AND(YEAR(Ne1Led+23)=RokKalendáře,MONTH(Ne1Led+23)=1),Ne1Led+23,\"\"))","v":"2018-01-23"},{"$f":"IF(DAY(Ne1Led)=1,IF(AND(YEAR(Ne1Led+17)=RokKalendáře,MONTH(Ne1Led+17)=1),Ne1Led+17,\"\"),IF(AND(YEAR(Ne1Led+24)=RokKalendáře,MONTH(Ne1Led+24)=1),Ne1Led+24,\"\"))","v":"2018-01-24"},{"$f":"IF(DAY(Ne1Led)=1,IF(AND(YEAR(Ne1Led+18)=RokKalendáře,MONTH(Ne1Led+18)=1),Ne1Led+18,\"\"),IF(AND(YEAR(Ne1Led+25)=RokKalendáře,MONTH(Ne1Led+25)=1),Ne1Led+25,\"\"))","v":"2018-01-25"},{"$f":"IF(DAY(Ne1Led)=1,IF(AND(YEAR(Ne1Led+19)=RokKalendáře,MONTH(Ne1Led+19)=1),Ne1Led+19,\"\"),IF(AND(YEAR(Ne1Led+26)=RokKalendáře,MONTH(Ne1Led+26)=1),Ne1Led+26,\"\"))","v":"2018-01-26"},{"$f":"IF(DAY(Ne1Led)=1,IF(AND(YEAR(Ne1Led+20)=RokKalendáře,MONTH(Ne1Led+20)=1),Ne1Led+20,\"\"),IF(AND(YEAR(Ne1Led+27)=RokKalendáře,MONTH(Ne1Led+27)=1),Ne1Led+27,\"\"))","v":"2018-01-27"},{"$f":"IF(DAY(Ne1Led)=1,IF(AND(YEAR(Ne1Led+21)=RokKalendáře,MONTH(Ne1Led+21)=1),Ne1Led+21,\"\"),IF(AND(YEAR(Ne1Led+28)=RokKalendáře,MONTH(Ne1Led+28)=1),Ne1Led+28,\"\"))","v":"2018-01-28"}]
[]
[null,{"$f":"IF(DAY(Ne1Led)=1,IF(AND(YEAR(Ne1Led+22)=RokKalendáře,MONTH(Ne1Led+22)=1),Ne1Led+22,\"\"),IF(AND(YEAR(Ne1Led+29)=RokKalendáře,MONTH(Ne1Led+29)=1),Ne1Led+29,\"\"))","v":"2018-01-29"},{"$f":"IF(DAY(Ne1Led)=1,IF(AND(YEAR(Ne1Led+23)=RokKalendáře,MONTH(Ne1Led+23)=1),Ne1Led+23,\"\"),IF(AND(YEAR(Ne1Led+30)=RokKalendáře,MONTH(Ne1Led+30)=1),Ne1Led+30,\"\"))","v":"2018-01-30"},{"$f":"IF(DAY(Ne1Led)=1,IF(AND(YEAR(Ne1Led+24)=RokKalendáře,MONTH(Ne1Led+24)=1),Ne1Led+24,\"\"),IF(AND(YEAR(Ne1Led+31)=RokKalendáře,MONTH(Ne1Led+31)=1),Ne1Led+31,\"\"))","v":"2018-01-31"},{"$f":"IF(DAY(Ne1Led)=1,IF(AND(YEAR(Ne1Led+25)=RokKalendáře,MONTH(Ne1Led+25)=1),Ne1Led+25,\"\"),IF(AND(YEAR(Ne1Led+32)=RokKalendáře,MONTH(Ne1Led+32)=1),Ne1Led+32,\"\"))","v":""},{"$f":"IF(DAY(Ne1Led)=1,IF(AND(YEAR(Ne1Led+26)=RokKalendáře,MONTH(Ne1Led+26)=1),Ne1Led+26,\"\"),IF(AND(YEAR(Ne1Led+33)=RokKalendáře,MONTH(Ne1Led+33)=1),Ne1Led+33,\"\"))","v":""},{"$f":"IF(DAY(Ne1Led)=1,IF(AND(YEAR(Ne1Led+27)=RokKalendáře,MONTH(Ne1Led+27)=1),Ne1Led+27,\"\"),IF(AND(YEAR(Ne1Led+34)=RokKalendáře,MONTH(Ne1Led+34)=1),Ne1Led+34,\"\"))","v":""},{"$f":"IF(DAY(Ne1Led)=1,IF(AND(YEAR(Ne1Led+28)=RokKalendáře,MONTH(Ne1Led+28)=1),Ne1Led+28,\"\"),IF(AND(YEAR(Ne1Led+35)=RokKalendáře,MONTH(Ne1Led+35)=1),Ne1Led+35,\"\"))","v":""}]
[]
[null,{"$f":"IF(DAY(Ne1Led)=1,IF(AND(YEAR(Ne1Led+29)=RokKalendáře,MONTH(Ne1Led+29)=1),Ne1Led+29,\"\"),IF(AND(YEAR(Ne1Led+36)=RokKalendáře,MONTH(Ne1Led+36)=1),Ne1Led+36,\"\"))","v":""},{"$f":"IF(DAY(Ne1Led)=1,IF(AND(YEAR(Ne1Led+30)=RokKalendáře,MONTH(Ne1Led+30)=1),Ne1Led+30,\"\"),IF(AND(YEAR(Ne1Led+37)=RokKalendáře,MONTH(Ne1Led+37)=1),Ne1Led+37,\"\"))","v":""},"POZNÁMKY:"]

{"sheet":"Únor","index":1,"n_rows":15,"n_cols":8,"rows_kept":15,"merged":[[2,1,2,5],[14,3,14,7],[15,3,15,7]]}
[]
[]
[null,{"$f":"UPPER(TEXT(DATE(RokKalendáře,2,1),\"mmmm rrrr\"))","v":"ÚNOR 2018"}]
[null,"PONDĚLÍ","ÚTERÝ","STŘEDA","ČTVRTEK","PÁTEK","SOBOTA","NEDĚLE"]
[null,{"$f":"IF(DAY(Ne1Úno)=1,\"\",IF(AND(YEAR(Ne1Úno+1)=RokKalendáře,MONTH(Ne1Úno+1)=2),Ne1Úno+1,\"\"))","v":""},{"$f":"IF(DAY(Ne1Úno)=1,\"\",IF(AND(YEAR(Ne1Úno+2)=RokKalendáře,MONTH(Ne1Úno+2)=2),Ne1Úno+2,\"\"))","v":""},{"$f":"IF(DAY(Ne1Úno)=1,\"\",IF(AND(YEAR(Ne1Úno+3)=RokKalendáře,MONTH(Ne1Úno+3)=2),Ne1Úno+3,\"\"))","v":""},{"$f":"IF(DAY(Ne1Úno)=1,\"\",IF(AND(YEAR(Ne1Úno+4)=RokKalendáře,MONTH(Ne1Úno+4)=2),Ne1Úno+4,\"\"))","v":"2018-02-01"},{"$f":"IF(DAY(Ne1Úno)=1,\"\",IF(AND(YEAR(Ne1Úno+5)=RokKalendáře,MONTH(Ne1Úno+5)=2),Ne1Úno+5,\"\"))","v":"2018-02-02"},{"$f":"IF(DAY(Ne1Úno)=1,\"\",IF(AND(YEAR(Ne1Úno+6)=RokKalendáře,MONTH(Ne1Úno+6)=2),Ne1Úno+6,\"\"))","v":"2018-02-03"},{"$f":"IF(DAY(Ne1Úno)=1,IF(AND(YEAR(Ne1Úno)=RokKalendáře,MONTH(Ne1Úno)=2),Ne1Úno,\"\"),IF(AND(YEAR(Ne1Úno+7)=RokKalendáře,MONTH(Ne1Úno+7)=2),Ne1Úno+7,\"\"))","v":"2018-02-04"}]
[]
[null,{"$f":"IF(DAY(Ne1Úno)=1,IF(AND(YEAR(Ne1Úno+1)=RokKalendáře,MONTH(Ne1Úno+1)=2),Ne1Úno+1,\"\"),IF(AND(YEAR(Ne1Úno+8)=RokKalendáře,MONTH(Ne1Úno+8)=2),Ne1Úno+8,\"\"))","v":"2018-02-05"},{"$f":"IF(DAY(Ne1Úno)=1,IF(AND(YEAR(Ne1Úno+2)=RokKalendáře,MONTH(Ne1Úno+2)=2),Ne1Úno+2,\"\"),IF(AND(YEAR(Ne1Úno+9)=RokKalendáře,MONTH(Ne1Úno+9)=2),Ne1Úno+9,\"\"))","v":"2018-02-06"},{"$f":"IF(DAY(Ne1Úno)=1,IF(AND(YEAR(Ne1Úno+3)=RokKalendáře,MONTH(Ne1Úno+3)=2),Ne1Úno+3,\"\"),IF(AND(YEAR(Ne1Úno+10)=RokKalendáře,MONTH(Ne1Úno+10)=2),Ne1Úno+10,\"\"))","v":"2018-02-07"},{"$f":"IF(DAY(Ne1Úno)=1,IF(AND(YEAR(Ne1Úno+4)=RokKalendáře,MONTH(Ne1Úno+4)=2),Ne1Úno+4,\"\"),IF(AND(YEAR(Ne1Úno+11)=RokKalendáře,MONTH(Ne1Úno+11)=2),Ne1Úno+11,\"\"))","v":"2018-02-08"},{"$f":"IF(DAY(Ne1Úno)=1,IF(AND(YEAR(Ne1Úno+5)=RokKalendáře,MONTH(Ne1Úno+5)=2),Ne1Úno+5,\"\"),IF(AND(YEAR(Ne1Úno+12)=RokKalendáře,MONTH(Ne1Úno+12)=2),Ne1Úno+12,\"\"))","v":"2018-02-09"},{"$f":"IF(DAY(Ne1Úno)=1,IF(AND(YEAR(Ne1Úno+6)=RokKalendáře,MONTH(Ne1Úno+6)=2),Ne1Úno+6,\"\"),IF(AND(YEAR(Ne1Úno+13)=RokKalendáře,MONTH(Ne1Úno+13)=2),Ne1Úno+13,\"\"))","v":"2018-02-10"},{"$f":"IF(DAY(Ne1Úno)=1,IF(AND(YEAR(Ne1Úno+7)=RokKalendáře,MONTH(Ne1Úno+7)=2),Ne1Úno+7,\"\"),IF(AND(YEAR(Ne1Úno+14)=RokKalendáře,MONTH(Ne1Úno+14)=2),Ne1Úno+14,\"\"))","v":"2018-02-11"}]
[]
[null,{"$f":"IF(DAY(Ne1Úno)=1,IF(AND(YEAR(Ne1Úno+8)=RokKalendáře,MONTH(Ne1Úno+8)=2),Ne1Úno+8,\"\"),IF(AND(YEAR(Ne1Úno+15)=RokKalendáře,MONTH(Ne1Úno+15)=2),Ne1Úno+15,\"\"))","v":"2018-02-12"},{"$f":"IF(DAY(Ne1Úno)=1,IF(AND(YEAR(Ne1Úno+9)=RokKalendáře,MONTH(Ne1Úno+9)=2),Ne1Úno+9,\"\"),IF(AND(YEAR(Ne1Úno+16)=RokKalendáře,MONTH(Ne1Úno+16)=2),Ne1Úno+16,\"\"))","v":"2018-02-13"},{"$f":"IF(DAY(Ne1Úno)=1,IF(AND(YEAR(Ne1Úno+10)=RokKalendáře,MONTH(Ne1Úno+10)=2),Ne1Úno+10,\"\"),IF(AND(YEAR(Ne1Úno+17)=RokKalendáře,MONTH(Ne1Úno+17)=2),Ne1Úno+17,\"\"))","v":"2018-02-14"},{"$f":"IF(DAY(Ne1Úno)=1,IF(AND(YEAR(Ne1Úno+11)=RokKalendáře,MONTH(Ne1Úno+11)=2),Ne1Úno+11,\"\"),IF(AND(YEAR(Ne1Úno+18)=RokKalendáře,MONTH(Ne1Úno+18)=2),Ne1Úno+18,\"\"))","v":"2018-02-15"},{"$f":"IF(DAY(Ne1Úno)=1,IF(AND(YEAR(Ne1Úno+12)=RokKalendáře,MONTH(Ne1Úno+12)=2),Ne1Úno+12,\"\"),IF(AND(YEAR(Ne1Úno+19)=RokKalendáře,MONTH(Ne1Úno+19)=2),Ne1Úno+19,\"\"))","v":"2018-02-16"},{"$f":"IF(DAY(Ne1Úno)=1,IF(AND(YEAR(Ne1Úno+13)=RokKalendáře,MONTH(Ne1Úno+13)=2),Ne1Úno+13,\"\"),IF(AND(YEAR(Ne1Úno+20)=RokKalendáře,MONTH(Ne1Úno+20)=2),Ne1Úno+20,\"\"))","v":"2018-02-17"},{"$f":"IF(DAY(Ne1Úno)=1,IF(AND(YEAR(Ne1Úno+14)=RokKalendáře,MONTH(Ne1Úno+14)=2),Ne1Úno+14,\"\"),IF(AND(YEAR(Ne1Úno+21)=RokKalendáře,MONTH(Ne1Úno+21)=2),Ne1Úno+21,\"\"))","v":"2018-02-18"}]
[]
[null,{"$f":"IF(DAY(Ne1Úno)=1,IF(AND(YEAR(Ne1Úno+15)=RokKalendáře,MONTH(Ne1Úno+15)=2),Ne1Úno+15,\"\"),IF(AND(YEAR(Ne1Úno+22)=RokKalendáře,MONTH(Ne1Úno+22)=2),Ne1Úno+22,\"\"))","v":"2018-02-19"},{"$f":"IF(DAY(Ne1Úno)=1,IF(AND(YEAR(Ne1Úno+16)=RokKalendáře,MONTH(Ne1Úno+16)=2),Ne1Úno+16,\"\"),IF(AND(YEAR(Ne1Úno+23)=RokKalendáře,MONTH(Ne1Úno+23)=2),Ne1Úno+23,\"\"))","v":"2018-02-20"},{"$f":"IF(DAY(Ne1Úno)=1,IF(AND(YEAR(Ne1Úno+17)=RokKalendáře,MONTH(Ne1Úno+17)=2),Ne1Úno+17,\"\"),IF(AND(YEAR(Ne1Úno+24)=RokKalendáře,MONTH(Ne1Úno+24)=2),Ne1Úno+24,\"\"))","v":"2018-02-21"},{"$f":"IF(DAY(Ne1Úno)=1,IF(AND(YEAR(Ne1Úno+18)=RokKalendáře,MONTH(Ne1Úno+18)=2),Ne1Úno+18,\"\"),IF(AND(YEAR(Ne1Úno+25)=RokKalendáře,MONTH(Ne1Úno+25)=2),Ne1Úno+25,\"\"))","v":"2018-02-22"},{"$f":"IF(DAY(Ne1Úno)=1,IF(AND(YEAR(Ne1Úno+19)=RokKalendáře,MONTH(Ne1Úno+19)=2),Ne1Úno+19,\"\"),IF(AND(YEAR(Ne1Úno+26)=RokKalendáře,MONTH(Ne1Úno+26)=2),Ne1Úno+26,\"\"))","v":"2018-02-23"},{"$f":"IF(DAY(Ne1Úno)=1,IF(AND(YEAR(Ne1Úno+20)=RokKalendáře,MONTH(Ne1Úno+20)=2),Ne1Úno+20,\"\"),IF(AND(YEAR(Ne1Úno+27)=RokKalendáře,MONTH(Ne1Úno+27)=2),Ne1Úno+27,\"\"))","v":"2018-02-24"},{"$f":"IF(DAY(Ne1Úno)=1,IF(AND(YEAR(Ne1Úno+21)=RokKalendáře,MONTH(Ne1Úno+21)=2),Ne1Úno+21,\"\"),IF(AND(YEAR(Ne1Úno+28)=RokKalendáře,MONTH(Ne1Úno+28)=2),Ne1Úno+28,\"\"))","v":"2018-02-25"}]
[]
[null,{"$f":"IF(DAY(Ne1Úno)=1,IF(AND(YEAR(Ne1Úno+22)=RokKalendáře,MONTH(Ne1Úno+22)=2),Ne1Úno+22,\"\"),IF(AND(YEAR(Ne1Úno+29)=RokKalendáře,MONTH(Ne1Úno+29)=2),Ne1Úno+29,\"\"))","v":"2018-02-26"},{"$f":"IF(DAY(Ne1Úno)=1,IF(AND(YEAR(Ne1Úno+23)=RokKalendáře,MONTH(Ne1Úno+23)=2),Ne1Úno+23,\"\"),IF(AND(YEAR(Ne1Úno+30)=RokKalendáře,MONTH(Ne1Úno+30)=2),Ne1Úno+30,\"\"))","v":"2018-02-27"},{"$f":"IF(DAY(Ne1Úno)=1,IF(AND(YEAR(Ne1Úno+24)=RokKalendáře,MONTH(Ne1Úno+24)=2),Ne1Úno+24,\"\"),IF(AND(YEAR(Ne1Úno+31)=RokKalendáře,MONTH(Ne1Úno+31)=2),Ne1Úno+31,\"\"))","v":"2018-02-28"},{"$f":"IF(DAY(Ne1Úno)=1,IF(AND(YEAR(Ne1Úno+25)=RokKalendáře,MONTH(Ne1Úno+25)=2),Ne1Úno+25,\"\"),IF(AND(YEAR(Ne1Úno+32)=RokKalendáře,MONTH(Ne1Úno+32)=2),Ne1Úno+32,\"\"))","v":""},{"$f":"IF(DAY(Ne1Úno)=1,IF(AND(YEAR(Ne1Úno+26)=RokKalendáře,MONTH(Ne1Úno+26)=2),Ne1Úno+26,\"\"),IF(AND(YEAR(Ne1Úno+33)=RokKalendáře,MONTH(Ne1Úno+33)=2),Ne1Úno+33,\"\"))","v":""},{"$f":"IF(DAY(Ne1Úno)=1,IF(AND(YEAR(Ne1Úno+27)=RokKalendáře,MONTH(Ne1Úno+27)=2),Ne1Úno+27,\"\"),IF(AND(YEAR(Ne1Úno+34)=RokKalendáře,MONTH(Ne1Úno+34)=2),Ne1Úno+34,\"\"))","v":""},{"$f":"IF(DAY(Ne1Úno)=1,IF(AND(YEAR(Ne1Úno+28)=RokKalendáře,MONTH(Ne1Úno+28)=2),Ne1Úno+28,\"\"),IF(AND(YEAR(Ne1Úno+35)=RokKalendáře,MONTH(Ne1Úno+35)=2),Ne1Úno+35,\"\"))","v":""}]
[]
[null,{"$f":"IF(DAY(Ne1Úno)=1,IF(AND(YEAR(Ne1Úno+29)=RokKalendáře,MONTH(Ne1Úno+29)=2),Ne1Úno+29,\"\"),IF(AND(YEAR(Ne1Úno+36)=RokKalendáře,MONTH(Ne1Úno+36)=2),Ne1Úno+36,\"\"))","v":""},{"$f":"IF(DAY(Ne1Úno)=1,IF(AND(YEAR(Ne1Úno+30)=RokKalendáře,MONTH(Ne1Úno+30)=2),Ne1Úno+30,\"\"),IF(AND(YEAR(Ne1Úno+37)=RokKalendáře,MONTH(Ne1Úno+37)=2),Ne1Úno+37,\"\"))","v":""},"POZNÁMKY:"]

{"sheet":"Březen","index":2,"n_rows":15,"n_cols":8,"rows_kept":15,"merged":[[2,1,2,5],[14,3,14,7],[15,3,15,7]]}
[]
[]
[null,{"$f":"UPPER(TEXT(DATE(RokKalendáře,3,1),\"mmmm rrrr\"))","v":"BŘEZEN 2018"}]
[null,"PONDĚLÍ","ÚTERÝ","STŘEDA","ČTVRTEK","PÁTEK","SOBOTA","NEDĚLE"]
[null,{"$f":"IF(DAY(Ne1Bře)=1,\"\",IF(AND(YEAR(Ne1Bře+1)=RokKalendáře,MONTH(Ne1Bře+1)=3),Ne1Bře+1,\"\"))","v":""},{"$f":"IF(DAY(Ne1Bře)=1,\"\",IF(AND(YEAR(Ne1Bře+2)=RokKalendáře,MONTH(Ne1Bře+2)=3),Ne1Bře+2,\"\"))","v":""},{"$f":"IF(DAY(Ne1Bře)=1,\"\",IF(AND(YEAR(Ne1Bře+3)=RokKalendáře,MONTH(Ne1Bře+3)=3),Ne1Bře+3,\"\"))","v":""},{"$f":"IF(DAY(Ne1Bře)=1,\"\",IF(AND(YEAR(Ne1Bře+4)=RokKalendáře,MONTH(Ne1Bře+4)=3),Ne1Bře+4,\"\"))","v":"2018-03-01"},{"$f":"IF(DAY(Ne1Bře)=1,\"\",IF(AND(YEAR(Ne1Bře+5)=RokKalendáře,MONTH(Ne1Bře+5)=3),Ne1Bře+5,\"\"))","v":"2018-03-02"},{"$f":"IF(DAY(Ne1Bře)=1,\"\",IF(AND(YEAR(Ne1Bře+6)=RokKalendáře,MONTH(Ne1Bře+6)=3),Ne1Bře+6,\"\"))","v":"2018-03-03"},{"$f":"IF(DAY(Ne1Bře)=1,IF(AND(YEAR(Ne1Bře)=RokKalendáře,MONTH(Ne1Bře)=3),Ne1Bře,\"\"),IF(AND(YEAR(Ne1Bře+7)=RokKalendáře,MONTH(Ne1Bře+7)=3),Ne1Bře+7,\"\"))","v":"2018-03-04"}]
[]
[null,{"$f":"IF(DAY(Ne1Bře)=1,IF(AND(YEAR(Ne1Bře+1)=RokKalendáře,MONTH(Ne1Bře+1)=3),Ne1Bře+1,\"\"),IF(AND(YEAR(Ne1Bře+8)=RokKalendáře,MONTH(Ne1Bře+8)=3),Ne1Bře+8,\"\"))","v":"2018-03-05"},{"$f":"IF(DAY(Ne1Bře)=1,IF(AND(YEAR(Ne1Bře+2)=RokKalendáře,MONTH(Ne1Bře+2)=3),Ne1Bře+2,\"\"),IF(AND(YEAR(Ne1Bře+9)=RokKalendáře,MONTH(Ne1Bře+9)=3),Ne1Bře+9,\"\"))","v":"2018-03-06"},{"$f":"IF(DAY(Ne1Bře)=1,IF(AND(YEAR(Ne1Bře+3)=RokKalendáře,MONTH(Ne1Bře+3)=3),Ne1Bře+3,\"\"),IF(AND(YEAR(Ne1Bře+10)=RokKalendáře,MONTH(Ne1Bře+10)=3),Ne1Bře+10,\"\"))","v":"2018-03-07"},{"$f":"IF(DAY(Ne1Bře)=1,IF(AND(YEAR(Ne1Bře+4)=RokKalendáře,MONTH(Ne1Bře+4)=3),Ne1Bře+4,\"\"),IF(AND(YEAR(Ne1Bře+11)=RokKalendáře,MONTH(Ne1Bře+11)=3),Ne1Bře+11,\"\"))","v":"2018-03-08"},{"$f":"IF(DAY(Ne1Bře)=1,IF(AND(YEAR(Ne1Bře+5)=RokKalendáře,MONTH(Ne1Bře+5)=3),Ne1Bře+5,\"\"),IF(AND(YEAR(Ne1Bře+12)=RokKalendáře,MONTH(Ne1Bře+12)=3),Ne1Bře+12,\"\"))","v":"2018-03-09"},{"$f":"IF(DAY(Ne1Bře)=1,IF(AND(YEAR(Ne1Bře+6)=RokKalendáře,MONTH(Ne1Bře+6)=3),Ne1Bře+6,\"\"),IF(AND(YEAR(Ne1Bře+13)=RokKalendáře,MONTH(Ne1Bře+13)=3),Ne1Bře+13,\"\"))","v":"2018-03-10"},{"$f":"IF(DAY(Ne1Bře)=1,IF(AND(YEAR(Ne1Bře+7)=RokKalendáře,MONTH(Ne1Bře+7)=3),Ne1Bře+7,\"\"),IF(AND(YEAR(Ne1Bře+14)=RokKalendáře,MONTH(Ne1Bře+14)=3),Ne1Bře+14,\"\"))","v":"2018-03-11"}]
[]
[null,{"$f":"IF(DAY(Ne1Bře)=1,IF(AND(YEAR(Ne1Bře+8)=RokKalendáře,MONTH(Ne1Bře+8)=3),Ne1Bře+8,\"\"),IF(AND(YEAR(Ne1Bře+15)=RokKalendáře,MONTH(Ne1Bře+15)=3),Ne1Bře+15,\"\"))","v":"2018-03-12"},{"$f":"IF(DAY(Ne1Bře)=1,IF(AND(YEAR(Ne1Bře+9)=RokKalendáře,MONTH(Ne1Bře+9)=3),Ne1Bře+9,\"\"),IF(AND(YEAR(Ne1Bře+16)=RokKalendáře,MONTH(Ne1Bře+16)=3),Ne1Bře+16,\"\"))","v":"2018-03-13"},{"$f":"IF(DAY(Ne1Bře)=1,IF(AND(YEAR(Ne1Bře+10)=RokKalendáře,MONTH(Ne1Bře+10)=3),Ne1Bře+10,\"\"),IF(AND(YEAR(Ne1Bře+17)=RokKalendáře,MONTH(Ne1Bře+17)=3),Ne1Bře+17,\"\"))","v":"2018-03-14"},{"$f":"IF(DAY(Ne1Bře)=1,IF(AND(YEAR(Ne1Bře+11)=RokKalendáře,MONTH(Ne1Bře+11)=3),Ne1Bře+11,\"\"),IF(AND(YEAR(Ne1Bře+18)=RokKalendáře,MONTH(Ne1Bře+18)=3),Ne1Bře+18,\"\"))","v":"2018-03-15"},{"$f":"IF(DAY(Ne1Bře)=1,IF(AND(YEAR(Ne1Bře+12)=RokKalendáře,MONTH(Ne1Bře+12)=3),Ne1Bře+12,\"\"),IF(AND(YEAR(Ne1Bře+19)=RokKalendáře,MONTH(Ne1Bře+19)=3),Ne1Bře+19,\"\"))","v":"2018-03-16"},{"$f":"IF(DAY(Ne1Bře)=1,IF(AND(YEAR(Ne1Bře+13)=RokKalendáře,MONTH(Ne1Bře+13)=3),Ne1Bře+13,\"\"),IF(AND(YEAR(Ne1Bře+20)=RokKalendáře,MONTH(Ne1Bře+20)=3),Ne1Bře+20,\"\"))","v":"2018-03-17"},{"$f":"IF(DAY(Ne1Bře)=1,IF(AND(YEAR(Ne1Bře+14)=RokKalendáře,MONTH(Ne1Bře+14)=3),Ne1Bře+14,\"\"),IF(AND(YEAR(Ne1Bře+21)=RokKalendáře,MONTH(Ne1Bře+21)=3),Ne1Bře+21,\"\"))","v":"2018-03-18"}]
[]
[null,{"$f":"IF(DAY(Ne1Bře)=1,IF(AND(YEAR(Ne1Bře+15)=RokKalendáře,MONTH(Ne1Bře+15)=3),Ne1Bře+15,\"\"),IF(AND(YEAR(Ne1Bře+22)=RokKalendáře,MONTH(Ne1Bře+22)=3),Ne1Bře+22,\"\"))","v":"2018-03-19"},{"$f":"IF(DAY(Ne1Bře)=1,IF(AND(YEAR(Ne1Bře+16)=RokKalendáře,MONTH(Ne1Bře+16)=3),Ne1Bře+16,\"\"),IF(AND(YEAR(Ne1Bře+23)=RokKalendáře,MONTH(Ne1Bře+23)=3),Ne1Bře+23,\"\"))","v":"2018-03-20"},{"$f":"IF(DAY(Ne1Bře)=1,IF(AND(YEAR(Ne1Bře+17)=RokKalendáře,MONTH(Ne1Bře+17)=3),Ne1Bře+17,\"\"),IF(AND(YEAR(Ne1Bře+24)=RokKalendáře,MONTH(Ne1Bře+24)=3),Ne1Bře+24,\"\"))","v":"2018-03-21"},{"$f":"IF(DAY(Ne1Bře)=1,IF(AND(YEAR(Ne1Bře+18)=RokKalendáře,MONTH(Ne1Bře+18)=3),Ne1Bře+18,\"\"),IF(AND(YEAR(Ne1Bře+25)=RokKalendáře,MONTH(Ne1Bře+25)=3),Ne1Bře+25,\"\"))","v":"2018-03-22"},{"$f":"IF(DAY(Ne1Bře)=1,IF(AND(YEAR(Ne1Bře+19)=RokKalendáře,MONTH(Ne1Bře+19)=3),Ne1Bře+19,\"\"),IF(AND(YEAR(Ne1Bře+26)=RokKalendáře,MONTH(Ne1Bře+26)=3),Ne1Bře+26,\"\"))","v":"2018-03-23"},{"$f":"IF(DAY(Ne1Bře)=1,IF(AND(YEAR(Ne1Bře+20)=RokKalendáře,MONTH(Ne1Bře+20)=3),Ne1Bře+20,\"\"),IF(AND(YEAR(Ne1Bře+27)=RokKalendáře,MONTH(Ne1Bře+27)=3),Ne1Bře+27,\"\"))","v":"2018-03-24"},{"$f":"IF(DAY(Ne1Bře)=1,IF(AND(YEAR(Ne1Bře+21)=RokKalendáře,MONTH(Ne1Bře+21)=3),Ne1Bře+21,\"\"),IF(AND(YEAR(Ne1Bře+28)=RokKalendáře,MONTH(Ne1Bře+28)=3),Ne1Bře+28,\"\"))","v":"2018-03-25"}]
[]
[null,{"$f":"IF(DAY(Ne1Bře)=1,IF(AND(YEAR(Ne1Bře+22)=RokKalendáře,MONTH(Ne1Bře+22)=3),Ne1Bře+22,\"\"),IF(AND(YEAR(Ne1Bře+29)=RokKalendáře,MONTH(Ne1Bře+29)=3),Ne1Bře+29,\"\"))","v":"2018-03-26"},{"$f":"IF(DAY(Ne1Bře)=1,IF(AND(YEAR(Ne1Bře+23)=RokKalendáře,MONTH(Ne1Bře+23)=3),Ne1Bře+23,\"\"),IF(AND(YEAR(Ne1Bře+30)=RokKalendáře,MONTH(Ne1Bře+30)=3),Ne1Bře+30,\"\"))","v":"2018-03-27"},{"$f":"IF(DAY(Ne1Bře)=1,IF(AND(YEAR(Ne1Bře+24)=RokKalendáře,MONTH(Ne1Bře+24)=3),Ne1Bře+24,\"\"),IF(AND(YEAR(Ne1Bře+31)=RokKalendáře,MONTH(Ne1Bře+31)=3),Ne1Bře+31,\"\"))","v":"2018-03-28"},{"$f":"IF(DAY(Ne1Bře)=1,IF(AND(YEAR(Ne1Bře+25)=RokKalendáře,MONTH(Ne1Bře+25)=3),Ne1Bře+25,\"\"),IF(AND(YEAR(Ne1Bře+32)=RokKalendáře,MONTH(Ne1Bře+32)=3),Ne1Bře+32,\"\"))","v":"2018-03-29"},{"$f":"IF(DAY(Ne1Bře)=1,IF(AND(YEAR(Ne1Bře+26)=RokKalendáře,MONTH(Ne1Bře+26)=3),Ne1Bře+26,\"\"),IF(AND(YEAR(Ne1Bře+33)=RokKalendáře,MONTH(Ne1Bře+33)=3),Ne1Bře+33,\"\"))","v":"2018-03-30"},{"$f":"IF(DAY(Ne1Bře)=1,IF(AND(YEAR(Ne1Bře+27)=RokKalendáře,MONTH(Ne1Bře+27)=3),Ne1Bře+27,\"\"),IF(AND(YEAR(Ne1Bře+34)=RokKalendáře,MONTH(Ne1Bře+34)=3),Ne1Bře+34,\"\"))","v":"2018-03-31"},{"$f":"IF(DAY(Ne1Bře)=1,IF(AND(YEAR(Ne1Bře+28)=RokKalendáře,MONTH(Ne1Bře+28)=3),Ne1Bře+28,\"\"),IF(AND(YEAR(Ne1Bře+35)=RokKalendáře,MONTH(Ne1Bře+35)=3),Ne1Bře+35,\"\"))","v":""}]
[]
[null,{"$f":"IF(DAY(Ne1Bře)=1,IF(AND(YEAR(Ne1Bře+29)=RokKalendáře,MONTH(Ne1Bře+29)=3),Ne1Bře+29,\"\"),IF(AND(YEAR(Ne1Bře+36)=RokKalendáře,MONTH(Ne1Bře+36)=3),Ne1Bře+36,\"\"))","v":""},{"$f":"IF(DAY(Ne1Bře)=1,IF(AND(YEAR(Ne1Bře+30)=RokKalendáře,MONTH(Ne1Bře+30)=3),Ne1Bře+30,\"\"),IF(AND(YEAR(Ne1Bře+37)=RokKalendáře,MONTH(Ne1Bře+37)=3),Ne1Bře+37,\"\"))","v":""},"POZNÁMKY:"]

{"sheet":"Duben","index":3,"n_rows":15,"n_cols":8,"rows_kept":15,"merged":[[2,1,2,5],[14,3,14,7],[15,3,15,7]]}
[]
[]
[null,{"$f":"UPPER(TEXT(DATE(RokKalendáře,4,1),\"mmmm rrrr\"))","v":"DUBEN 2018"}]
[null,"PONDĚLÍ","ÚTERÝ","STŘEDA","ČTVRTEK","PÁTEK","SOBOTA","NEDĚLE"]
[null,{"$f":"IF(DAY(Ne1Dub)=1,\"\",IF(AND(YEAR(Ne1Dub+1)=RokKalendáře,MONTH(Ne1Dub+1)=4),Ne1Dub+1,\"\"))","v":""},{"$f":"IF(DAY(Ne1Dub)=1,\"\",IF(AND(YEAR(Ne1Dub+2)=RokKalendáře,MONTH(Ne1Dub+2)=4),Ne1Dub+2,\"\"))","v":""},{"$f":"IF(DAY(Ne1Dub)=1,\"\",IF(AND(YEAR(Ne1Dub+3)=RokKalendáře,MONTH(Ne1Dub+3)=4),Ne1Dub+3,\"\"))","v":""},{"$f":"IF(DAY(Ne1Dub)=1,\"\",IF(AND(YEAR(Ne1Dub+4)=RokKalendáře,MONTH(Ne1Dub+4)=4),Ne1Dub+4,\"\"))","v":""},{"$f":"IF(DAY(Ne1Dub)=1,\"\",IF(AND(YEAR(Ne1Dub+5)=RokKalendáře,MONTH(Ne1Dub+5)=4),Ne1Dub+5,\"\"))","v":""},{"$f":"IF(DAY(Ne1Dub)=1,\"\",IF(AND(YEAR(Ne1Dub+6)=RokKalendáře,MONTH(Ne1Dub+6)=4),Ne1Dub+6,\"\"))","v":""},{"$f":"IF(DAY(Ne1Dub)=1,IF(AND(YEAR(Ne1Dub)=RokKalendáře,MONTH(Ne1Dub)=4),Ne1Dub,\"\"),IF(AND(YEAR(Ne1Dub+7)=RokKalendáře,MONTH(Ne1Dub+7)=4),Ne1Dub+7,\"\"))","v":"2018-04-01"}]
[]
[null,{"$f":"IF(DAY(Ne1Dub)=1,IF(AND(YEAR(Ne1Dub+1)=RokKalendáře,MONTH(Ne1Dub+1)=4),Ne1Dub+1,\"\"),IF(AND(YEAR(Ne1Dub+8)=RokKalendáře,MONTH(Ne1Dub+8)=4),Ne1Dub+8,\"\"))","v":"2018-04-02"},{"$f":"IF(DAY(Ne1Dub)=1,IF(AND(YEAR(Ne1Dub+2)=RokKalendáře,MONTH(Ne1Dub+2)=4),Ne1Dub+2,\"\"),IF(AND(YEAR(Ne1Dub+9)=RokKalendáře,MONTH(Ne1Dub+9)=4),Ne1Dub+9,\"\"))","v":"2018-04-03"},{"$f":"IF(DAY(Ne1Dub)=1,IF(AND(YEAR(Ne1Dub+3)=RokKalendáře,MONTH(Ne1Dub+3)=4),Ne1Dub+3,\"\"),IF(AND(YEAR(Ne1Dub+10)=RokKalendáře,MONTH(Ne1Dub+10)=4),Ne1Dub+10,\"\"))","v":"2018-04-04"},{"$f":"IF(DAY(Ne1Dub)=1,IF(AND(YEAR(Ne1Dub+4)=RokKalendáře,MONTH(Ne1Dub+4)=4),Ne1Dub+4,\"\"),IF(AND(YEAR(Ne1Dub+11)=RokKalendáře,MONTH(Ne1Dub+11)=4),Ne1Dub+11,\"\"))","v":"2018-04-05"},{"$f":"IF(DAY(Ne1Dub)=1,IF(AND(YEAR(Ne1Dub+5)=RokKalendáře,MONTH(Ne1Dub+5)=4),Ne1Dub+5,\"\"),IF(AND(YEAR(Ne1Dub+12)=RokKalendáře,MONTH(Ne1Dub+12)=4),Ne1Dub+12,\"\"))","v":"2018-04-06"},{"$f":"IF(DAY(Ne1Dub)=1,IF(AND(YEAR(Ne1Dub+6)=RokKalendáře,MONTH(Ne1Dub+6)=4),Ne1Dub+6,\"\"),IF(AND(YEAR(Ne1Dub+13)=RokKalendáře,MONTH(Ne1Dub+13)=4),Ne1Dub+13,\"\"))","v":"2018-04-07"},{"$f":"IF(DAY(Ne1Dub)=1,IF(AND(YEAR(Ne1Dub+7)=RokKalendáře,MONTH(Ne1Dub+7)=4),Ne1Dub+7,\"\"),IF(AND(YEAR(Ne1Dub+14)=RokKalendáře,MONTH(Ne1Dub+14)=4),Ne1Dub+14,\"\"))","v":"2018-04-08"}]
[]
[null,{"$f":"IF(DAY(Ne1Dub)=1,IF(AND(YEAR(Ne1Dub+8)=RokKalendáře,MONTH(Ne1Dub+8)=4),Ne1Dub+8,\"\"),IF(AND(YEAR(Ne1Dub+15)=RokKalendáře,MONTH(Ne1Dub+15)=4),Ne1Dub+15,\"\"))","v":"2018-04-09"},{"$f":"IF(DAY(Ne1Dub)=1,IF(AND(YEAR(Ne1Dub+9)=RokKalendáře,MONTH(Ne1Dub+9)=4),Ne1Dub+9,\"\"),IF(AND(YEAR(Ne1Dub+16)=RokKalendáře,MONTH(Ne1Dub+16)=4),Ne1Dub+16,\"\"))","v":"2018-04-10"},{"$f":"IF(DAY(Ne1Dub)=1,IF(AND(YEAR(Ne1Dub+10)=RokKalendáře,MONTH(Ne1Dub+10)=4),Ne1Dub+10,\"\"),IF(AND(YEAR(Ne1Dub+17)=RokKalendáře,MONTH(Ne1Dub+17)=4),Ne1Dub+17,\"\"))","v":"2018-04-11"},{"$f":"IF(DAY(Ne1Dub)=1,IF(AND(YEAR(Ne1Dub+11)=RokKalendáře,MONTH(Ne1Dub+11)=4),Ne1Dub+11,\"\"),IF(AND(YEAR(Ne1Dub+18)=RokKalendáře,MONTH(Ne1Dub+18)=4),Ne1Dub+18,\"\"))","v":"2018-04-12"},{"$f":"IF(DAY(Ne1Dub)=1,IF(AND(YEAR(Ne1Dub+12)=RokKalendáře,MONTH(Ne1Dub+12)=4),Ne1Dub+12,\"\"),IF(AND(YEAR(Ne1Dub+19)=RokKalendáře,MONTH(Ne1Dub+19)=4),Ne1Dub+19,\"\"))","v":"2018-04-13"},{"$f":"IF(DAY(Ne1Dub)=1,IF(AND(YEAR(Ne1Dub+13)=RokKalendáře,MONTH(Ne1Dub+13)=4),Ne1Dub+13,\"\"),IF(AND(YEAR(Ne1Dub+20)=RokKalendáře,MONTH(Ne1Dub+20)=4),Ne1Dub+20,\"\"))","v":"2018-04-14"},{"$f":"IF(DAY(Ne1Dub)=1,IF(AND(YEAR(Ne1Dub+14)=RokKalendáře,MONTH(Ne1Dub+14)=4),Ne1Dub+14,\"\"),IF(AND(YEAR(Ne1Dub+21)=RokKalendáře,MONTH(Ne1Dub+21)=4),Ne1Dub+21,\"\"))","v":"2018-04-15"}]
[]
[null,{"$f":"IF(DAY(Ne1Dub)=1,IF(AND(YEAR(Ne1Dub+15)=RokKalendáře,MONTH(Ne1Dub+15)=4),Ne1Dub+15,\"\"),IF(AND(YEAR(Ne1Dub+22)=RokKalendáře,MONTH(Ne1Dub+22)=4),Ne1Dub+22,\"\"))","v":"2018-04-16"},{"$f":"IF(DAY(Ne1Dub)=1,IF(AND(YEAR(Ne1Dub+16)=RokKalendáře,MONTH(Ne1Dub+16)=4),Ne1Dub+16,\"\"),IF(AND(YEAR(Ne1Dub+23)=RokKalendáře,MONTH(Ne1Dub+23)=4),Ne1Dub+23,\"\"))","v":"2018-04-17"},{"$f":"IF(DAY(Ne1Dub)=1,IF(AND(YEAR(Ne1Dub+17)=RokKalendáře,MONTH(Ne1Dub+17)=4),Ne1Dub+17,\"\"),IF(AND(YEAR(Ne1Dub+24)=RokKalendáře,MONTH(Ne1Dub+24)=4),Ne1Dub+24,\"\"))","v":"2018-04-18"},{"$f":"IF(DAY(Ne1Dub)=1,IF(AND(YEAR(Ne1Dub+18)=RokKalendáře,MONTH(Ne1Dub+18)=4),Ne1Dub+18,\"\"),IF(AND(YEAR(Ne1Dub+25)=RokKalendáře,MONTH(Ne1Dub+25)=4),Ne1Dub+25,\"\"))","v":"2018-04-19"},{"$f":"IF(DAY(Ne1Dub)=1,IF(AND(YEAR(Ne1Dub+19)=RokKalendáře,MONTH(Ne1Dub+19)=4),Ne1Dub+19,\"\"),IF(AND(YEAR(Ne1Dub+26)=RokKalendáře,MONTH(Ne1Dub+26)=4),Ne1Dub+26,\"\"))","v":"2018-04-20"},{"$f":"IF(DAY(Ne1Dub)=1,IF(AND(YEAR(Ne1Dub+20)=RokKalendáře,MONTH(Ne1Dub+20)=4),Ne1Dub+20,\"\"),IF(AND(YEAR(Ne1Dub+27)=RokKalendáře,MONTH(Ne1Dub+27)=4),Ne1Dub+27,\"\"))","v":"2018-04-21"},{"$f":"IF(DAY(Ne1Dub)=1,IF(AND(YEAR(Ne1Dub+21)=RokKalendáře,MONTH(Ne1Dub+21)=4),Ne1Dub+21,\"\"),IF(AND(YEAR(Ne1Dub+28)=RokKalendáře,MONTH(Ne1Dub+28)=4),Ne1Dub+28,\"\"))","v":"2018-04-22"}]
[]
[null,{"$f":"IF(DAY(Ne1Dub)=1,IF(AND(YEAR(Ne1Dub+22)=RokKalendáře,MONTH(Ne1Dub+22)=4),Ne1Dub+22,\"\"),IF(AND(YEAR(Ne1Dub+29)=RokKalendáře,MONTH(Ne1Dub+29)=4),Ne1Dub+29,\"\"))","v":"2018-04-23"},{"$f":"IF(DAY(Ne1Dub)=1,IF(AND(YEAR(Ne1Dub+23)=RokKalendáře,MONTH(Ne1Dub+23)=4),Ne1Dub+23,\"\"),IF(AND(YEAR(Ne1Dub+30)=RokKalendáře,MONTH(Ne1Dub+30)=4),Ne1Dub+30,\"\"))","v":"2018-04-24"},{"$f":"IF(DAY(Ne1Dub)=1,IF(AND(YEAR(Ne1Dub+24)=RokKalendáře,MONTH(Ne1Dub+24)=4),Ne1Dub+24,\"\"),IF(AND(YEAR(Ne1Dub+31)=RokKalendáře,MONTH(Ne1Dub+31)=4),Ne1Dub+31,\"\"))","v":"2018-04-25"},{"$f":"IF(DAY(Ne1Dub)=1,IF(AND(YEAR(Ne1Dub+25)=RokKalendáře,MONTH(Ne1Dub+25)=4),Ne1Dub+25,\"\"),IF(AND(YEAR(Ne1Dub+32)=RokKalendáře,MONTH(Ne1Dub+32)=4),Ne1Dub+32,\"\"))","v":"2018-04-26"},{"$f":"IF(DAY(Ne1Dub)=1,IF(AND(YEAR(Ne1Dub+26)=RokKalendáře,MONTH(Ne1Dub+26)=4),Ne1Dub+26,\"\"),IF(AND(YEAR(Ne1Dub+33)=RokKalendáře,MONTH(Ne1Dub+33)=4),Ne1Dub+33,\"\"))","v":"2018-04-27"},{"$f":"IF(DAY(Ne1Dub)=1,IF(AND(YEAR(Ne1Dub+27)=RokKalendáře,MONTH(Ne1Dub+27)=4),Ne1Dub+27,\"\"),IF(AND(YEAR(Ne1Dub+34)=RokKalendáře,MONTH(Ne1Dub+34)=4),Ne1Dub+34,\"\"))","v":"2018-04-28"},{"$f":"IF(DAY(Ne1Dub)=1,IF(AND(YEAR(Ne1Dub+28)=RokKalendáře,MONTH(Ne1Dub+28)=4),Ne1Dub+28,\"\"),IF(AND(YEAR(Ne1Dub+35)=RokKalendáře,MONTH(Ne1Dub+35)=4),Ne1Dub+35,\"\"))","v":"2018-04-29"}]
[]
[null,{"$f":"IF(DAY(Ne1Dub)=1,IF(AND(YEAR(Ne1Dub+29)=RokKalendáře,MONTH(Ne1Dub+29)=4),Ne1Dub+29,\"\"),IF(AND(YEAR(Ne1Dub+36)=RokKalendáře,MONTH(Ne1Dub+36)=4),Ne1Dub+36,\"\"))","v":"2018-04-30"},{"$f":"IF(DAY(Ne1Dub)=1,IF(AND(YEAR(Ne1Dub+30)=RokKalendáře,MONTH(Ne1Dub+30)=4),Ne1Dub+30,\"\"),IF(AND(YEAR(Ne1Dub+37)=RokKalendáře,MONTH(Ne1Dub+37)=4),Ne1Dub+37,\"\"))","v":""},"POZNÁMKY:"]

{"sheet":"Květen","index":4,"n_rows":15,"n_cols":8,"rows_kept":15,"merged":[[2,1,2,5],[14,3,14,7],[15,3,15,7]]}
[]
[]
[null,{"$f":"UPPER(TEXT(DATE(RokKalendáře,5,1),\"mmmm rrrr\"))","v":"KVĚTEN 2018"}]
[null,"PONDĚLÍ","ÚTERÝ","STŘEDA","ČTVRTEK","PÁTEK","SOBOTA","NEDĚLE"]
[null,{"$f":"IF(DAY(Ne1Kvě)=1,\"\",IF(AND(YEAR(Ne1Kvě+1)=RokKalendáře,MONTH(Ne1Kvě+1)=5),Ne1Kvě+1,\"\"))","v":""},{"$f":"IF(DAY(Ne1Kvě)=1,\"\",IF(AND(YEAR(Ne1Kvě+2)=RokKalendáře,MONTH(Ne1Kvě+2)=5),Ne1Kvě+2,\"\"))","v":"2018-05-01"},{"$f":"IF(DAY(Ne1Kvě)=1,\"\",IF(AND(YEAR(Ne1Kvě+3)=RokKalendáře,MONTH(Ne1Kvě+3)=5),Ne1Kvě+3,\"\"))","v":"2018-05-02"},{"$f":"IF(DAY(Ne1Kvě)=1,\"\",IF(AND(YEAR(Ne1Kvě+4)=RokKalendáře,MONTH(Ne1Kvě+4)=5),Ne1Kvě+4,\"\"))","v":"2018-05-03"},{"$f":"IF(DAY(Ne1Kvě)=1,\"\",IF(AND(YEAR(Ne1Kvě+5)=RokKalendáře,MONTH(Ne1Kvě+5)=5),Ne1Kvě+5,\"\"))","v":"2018-05-04"},{"$f":"IF(DAY(Ne1Kvě)=1,\"\",IF(AND(YEAR(Ne1Kvě+6)=RokKalendáře,MONTH(Ne1Kvě+6)=5),Ne1Kvě+6,\"\"))","v":"2018-05-05"},{"$f":"IF(DAY(Ne1Kvě)=1,IF(AND(YEAR(Ne1Kvě)=RokKalendáře,MONTH(Ne1Kvě)=5),Ne1Kvě,\"\"),IF(AND(YEAR(Ne1Kvě+7)=RokKalendáře,MONTH(Ne1Kvě+7)=5),Ne1Kvě+7,\"\"))","v":"2018-05-06"}]
[]
[null,{"$f":"IF(DAY(Ne1Kvě)=1,IF(AND(YEAR(Ne1Kvě+1)=RokKalendáře,MONTH(Ne1Kvě+1)=5),Ne1Kvě+1,\"\"),IF(AND(YEAR(Ne1Kvě+8)=RokKalendáře,MONTH(Ne1Kvě+8)=5),Ne1Kvě+8,\"\"))","v":"2018-05-07"},{"$f":"IF(DAY(Ne1Kvě)=1,IF(AND(YEAR(Ne1Kvě+2)=RokKalendáře,MONTH(Ne1Kvě+2)=5),Ne1Kvě+2,\"\"),IF(AND(YEAR(Ne1Kvě+9)=RokKalendáře,MONTH(Ne1Kvě+9)=5),Ne1Kvě+9,\"\"))","v":"2018-05-08"},{"$f":"IF(DAY(Ne1Kvě)=1,IF(AND(YEAR(Ne1Kvě+3)=RokKalendáře,MONTH(Ne1Kvě+3)=5),Ne1Kvě+3,\"\"),IF(AND(YEAR(Ne1Kvě+10)=RokKalendáře,MONTH(Ne1Kvě+10)=5),Ne1Kvě+10,\"\"))","v":"2018-05-09"},{"$f":"IF(DAY(Ne1Kvě)=1,IF(AND(YEAR(Ne1Kvě+4)=RokKalendáře,MONTH(Ne1Kvě+4)=5),Ne1Kvě+4,\"\"),IF(AND(YEAR(Ne1Kvě+11)=RokKalendáře,MONTH(Ne1Kvě+11)=5),Ne1Kvě+11,\"\"))","v":"2018-05-10"},{"$f":"IF(DAY(Ne1Kvě)=1,IF(AND(YEAR(Ne1Kvě+5)=RokKalendáře,MONTH(Ne1Kvě+5)=5),Ne1Kvě+5,\"\"),IF(AND(YEAR(Ne1Kvě+12)=RokKalendáře,MONTH(Ne1Kvě+12)=5),Ne1Kvě+12,\"\"))","v":"2018-05-11"},{"$f":"IF(DAY(Ne1Kvě)=1,IF(AND(YEAR(Ne1Kvě+6)=RokKalendáře,MONTH(Ne1Kvě+6)=5),Ne1Kvě+6,\"\"),IF(AND(YEAR(Ne1Kvě+13)=RokKalendáře,MONTH(Ne1Kvě+13)=5),Ne1Kvě+13,\"\"))","v":"2018-05-12"},{"$f":"IF(DAY(Ne1Kvě)=1,IF(AND(YEAR(Ne1Kvě+7)=RokKalendáře,MONTH(Ne1Kvě+7)=5),Ne1Kvě+7,\"\"),IF(AND(YEAR(Ne1Kvě+14)=RokKalendáře,MONTH(Ne1Kvě+14)=5),Ne1Kvě+14,\"\"))","v":"2018-05-13"}]
[]
[null,{"$f":"IF(DAY(Ne1Kvě)=1,IF(AND(YEAR(Ne1Kvě+8)=RokKalendáře,MONTH(Ne1Kvě+8)=5),Ne1Kvě+8,\"\"),IF(AND(YEAR(Ne1Kvě+15)=RokKalendáře,MONTH(Ne1Kvě+15)=5),Ne1Kvě+15,\"\"))","v":"2018-05-14"},{"$f":"IF(DAY(Ne1Kvě)=1,IF(AND(YEAR(Ne1Kvě+9)=RokKalendáře,MONTH(Ne1Kvě+9)=5),Ne1Kvě+9,\"\"),IF(AND(YEAR(Ne1Kvě+16)=RokKalendáře,MONTH(Ne1Kvě+16)=5),Ne1Kvě+16,\"\"))","v":"2018-05-15"},{"$f":"IF(DAY(Ne1Kvě)=1,IF(AND(YEAR(Ne1Kvě+10)=RokKalendáře,MONTH(Ne1Kvě+10)=5),Ne1Kvě+10,\"\"),IF(AND(YEAR(Ne1Kvě+17)=RokKalendáře,MONTH(Ne1Kvě+17)=5),Ne1Kvě+17,\"\"))","v":"2018-05-16"},{"$f":"IF(DAY(Ne1Kvě)=1,IF(AND(YEAR(Ne1Kvě+11)=RokKalendáře,MONTH(Ne1Kvě+11)=5),Ne1Kvě+11,\"\"),IF(AND(YEAR(Ne1Kvě+18)=RokKalendáře,MONTH(Ne1Kvě+18)=5),Ne1Kvě+18,\"\"))","v":"2018-05-17"},{"$f":"IF(DAY(Ne1Kvě)=1,IF(AND(YEAR(Ne1Kvě+12)=RokKalendáře,MONTH(Ne1Kvě+12)=5),Ne1Kvě+12,\"\"),IF(AND(YEAR(Ne1Kvě+19)=RokKalendáře,MONTH(Ne1Kvě+19)=5),Ne1Kvě+19,\"\"))","v":"2018-05-18"},{"$f":"IF(DAY(Ne1Kvě)=1,IF(AND(YEAR(Ne1Kvě+13)=RokKalendáře,MONTH(Ne1Kvě+13)=5),Ne1Kvě+13,\"\"),IF(AND(YEAR(Ne1Kvě+20)=RokKalendáře,MONTH(Ne1Kvě+20)=5),Ne1Kvě+20,\"\"))","v":"2018-05-19"},{"$f":"IF(DAY(Ne1Kvě)=1,IF(AND(YEAR(Ne1Kvě+14)=RokKalendáře,MONTH(Ne1Kvě+14)=5),Ne1Kvě+14,\"\"),IF(AND(YEAR(Ne1Kvě+21)=RokKalendáře,MONTH(Ne1Kvě+21)=5),Ne1Kvě+21,\"\"))","v":"2018-05-20"}]
[]
[null,{"$f":"IF(DAY(Ne1Kvě)=1,IF(AND(YEAR(Ne1Kvě+15)=RokKalendáře,MONTH(Ne1Kvě+15)=5),Ne1Kvě+15,\"\"),IF(AND(YEAR(Ne1Kvě+22)=RokKalendáře,MONTH(Ne1Kvě+22)=5),Ne1Kvě+22,\"\"))","v":"2018-05-21"},{"$f":"IF(DAY(Ne1Kvě)=1,IF(AND(YEAR(Ne1Kvě+16)=RokKalendáře,MONTH(Ne1Kvě+16)=5),Ne1Kvě+16,\"\"),IF(AND(YEAR(Ne1Kvě+23)=RokKalendáře,MONTH(Ne1Kvě+23)=5),Ne1Kvě+23,\"\"))","v":"2018-05-22"},{"$f":"IF(DAY(Ne1Kvě)=1,IF(AND(YEAR(Ne1Kvě+17)=RokKalendáře,MONTH(Ne1Kvě+17)=5),Ne1Kvě+17,\"\"),IF(AND(YEAR(Ne1Kvě+24)=RokKalendáře,MONTH(Ne1Kvě+24)=5),Ne1Kvě+24,\"\"))","v":"2018-05-23"},{"$f":"IF(DAY(Ne1Kvě)=1,IF(AND(YEAR(Ne1Kvě+18)=RokKalendáře,MONTH(Ne1Kvě+18)=5),Ne1Kvě+18,\"\"),IF(AND(YEAR(Ne1Kvě+25)=RokKalendáře,MONTH(Ne1Kvě+25)=5),Ne1Kvě+25,\"\"))","v":"2018-05-24"},{"$f":"IF(DAY(Ne1Kvě)=1,IF(AND(YEAR(Ne1Kvě+19)=RokKalendáře,MONTH(Ne1Kvě+19)=5),Ne1Kvě+19,\"\"),IF(AND(YEAR(Ne1Kvě+26)=RokKalendáře,MONTH(Ne1Kvě+26)=5),Ne1Kvě+26,\"\"))","v":"2018-05-25"},{"$f":"IF(DAY(Ne1Kvě)=1,IF(AND(YEAR(Ne1Kvě+20)=RokKalendáře,MONTH(Ne1Kvě+20)=5),Ne1Kvě+20,\"\"),IF(AND(YEAR(Ne1Kvě+27)=RokKalendáře,MONTH(Ne1Kvě+27)=5),Ne1Kvě+27,\"\"))","v":"2018-05-26"},{"$f":"IF(DAY(Ne1Kvě)=1,IF(AND(YEAR(Ne1Kvě+21)=RokKalendáře,MONTH(Ne1Kvě+21)=5),Ne1Kvě+21,\"\"),IF(AND(YEAR(Ne1Kvě+28)=RokKalendáře,MONTH(Ne1Kvě+28)=5),Ne1Kvě+28,\"\"))","v":"2018-05-27"}]
[]
[null,{"$f":"IF(DAY(Ne1Kvě)=1,IF(AND(YEAR(Ne1Kvě+22)=RokKalendáře,MONTH(Ne1Kvě+22)=5),Ne1Kvě+22,\"\"),IF(AND(YEAR(Ne1Kvě+29)=RokKalendáře,MONTH(Ne1Kvě+29)=5),Ne1Kvě+29,\"\"))","v":"2018-05-28"},{"$f":"IF(DAY(Ne1Kvě)=1,IF(AND(YEAR(Ne1Kvě+23)=RokKalendáře,MONTH(Ne1Kvě+23)=5),Ne1Kvě+23,\"\"),IF(AND(YEAR(Ne1Kvě+30)=RokKalendáře,MONTH(Ne1Kvě+30)=5),Ne1Kvě+30,\"\"))","v":"2018-05-29"},{"$f":"IF(DAY(Ne1Kvě)=1,IF(AND(YEAR(Ne1Kvě+24)=RokKalendáře,MONTH(Ne1Kvě+24)=5),Ne1Kvě+24,\"\"),IF(AND(YEAR(Ne1Kvě+31)=RokKalendáře,MONTH(Ne1Kvě+31)=5),Ne1Kvě+31,\"\"))","v":"2018-05-30"},{"$f":"IF(DAY(Ne1Kvě)=1,IF(AND(YEAR(Ne1Kvě+25)=RokKalendáře,MONTH(Ne1Kvě+25)=5),Ne1Kvě+25,\"\"),IF(AND(YEAR(Ne1Kvě+32)=RokKalendáře,MONTH(Ne1Kvě+32)=5),Ne1Kvě+32,\"\"))","v":"2018-05-31"},{"$f":"IF(DAY(Ne1Kvě)=1,IF(AND(YEAR(Ne1Kvě+26)=RokKalendáře,MONTH(Ne1Kvě+26)=5),Ne1Kvě+26,\"\"),IF(AND(YEAR(Ne1Kvě+33)=RokKalendáře,MONTH(Ne1Kvě+33)=5),Ne1Kvě+33,\"\"))","v":""},{"$f":"IF(DAY(Ne1Kvě)=1,IF(AND(YEAR(Ne1Kvě+27)=RokKalendáře,MONTH(Ne1Kvě+27)=5),Ne1Kvě+27,\"\"),IF(AND(YEAR(Ne1Kvě+34)=RokKalendáře,MONTH(Ne1Kvě+34)=5),Ne1Kvě+34,\"\"))","v":""},{"$f":"IF(DAY(Ne1Kvě)=1,IF(AND(YEAR(Ne1Kvě+28)=RokKalendáře,MONTH(Ne1Kvě+28)=5),Ne1Kvě+28,\"\"),IF(AND(YEAR(Ne1Kvě+35)=RokKalendáře,MONTH(Ne1Kvě+35)=5),Ne1Kvě+35,\"\"))","v":""}]
[]
[null,{"$f":"IF(DAY(Ne1Kvě)=1,IF(AND(YEAR(Ne1Kvě+29)=RokKalendáře,MONTH(Ne1Kvě+29)=5),Ne1Kvě+29,\"\"),IF(AND(YEAR(Ne1Kvě+36)=RokKalendáře,MONTH(Ne1Kvě+36)=5),Ne1Kvě+36,\"\"))","v":""},{"$f":"IF(DAY(Ne1Kvě)=1,IF(AND(YEAR(Ne1Kvě+30)=RokKalendáře,MONTH(Ne1Kvě+30)=5),Ne1Kvě+30,\"\"),IF(AND(YEAR(Ne1Kvě+37)=RokKalendáře,MONTH(Ne1Kvě+37)=5),Ne1Kvě+37,\"\"))","v":""},"POZNÁMKY:"]

{"sheet":"Červen","index":5,"n_rows":15,"n_cols":8,"rows_kept":15,"merged":[[2,1,2,5],[14,3,14,7],[15,3,15,7]]}
[]
[]
[null,{"$f":"UPPER(TEXT(DATE(RokKalendáře,6,1),\"mmmm rrrr\"))","v":"ČERVEN 2018"}]
[null,"PONDĚLÍ","ÚTERÝ","STŘEDA","ČTVRTEK","PÁTEK","SOBOTA","NEDĚLE"]
[null,{"$f":"IF(DAY(Ne1Čer)=1,\"\",IF(AND(YEAR(Ne1Čer+1)=RokKalendáře,MONTH(Ne1Čer+1)=6),Ne1Čer+1,\"\"))","v":""},{"$f":"IF(DAY(Ne1Čer)=1,\"\",IF(AND(YEAR(Ne1Čer+2)=RokKalendáře,MONTH(Ne1Čer+2)=6),Ne1Čer+2,\"\"))","v":""},{"$f":"IF(DAY(Ne1Čer)=1,\"\",IF(AND(YEAR(Ne1Čer+3)=RokKalendáře,MONTH(Ne1Čer+3)=6),Ne1Čer+3,\"\"))","v":""},{"$f":"IF(DAY(Ne1Čer)=1,\"\",IF(AND(YEAR(Ne1Čer+4)=RokKalendáře,MONTH(Ne1Čer+4)=6),Ne1Čer+4,\"\"))","v":""},{"$f":"IF(DAY(Ne1Čer)=1,\"\",IF(AND(YEAR(Ne1Čer+5)=RokKalendáře,MONTH(Ne1Čer+5)=6),Ne1Čer+5,\"\"))","v":"2018-06-01"},{"$f":"IF(DAY(Ne1Čer)=1,\"\",IF(AND(YEAR(Ne1Čer+6)=RokKalendáře,MONTH(Ne1Čer+6)=6),Ne1Čer+6,\"\"))","v":"2018-06-02"},{"$f":"IF(DAY(Ne1Čer)=1,IF(AND(YEAR(Ne1Čer)=RokKalendáře,MONTH(Ne1Čer)=6),Ne1Čer,\"\"),IF(AND(YEAR(Ne1Čer+7)=RokKalendáře,MONTH(Ne1Čer+7)=6),Ne1Čer+7,\"\"))","v":"2018-06-03"}]
[]
[null,{"$f":"IF(DAY(Ne1Čer)=1,IF(AND(YEAR(Ne1Čer+1)=RokKalendáře,MONTH(Ne1Čer+1)=6),Ne1Čer+1,\"\"),IF(AND(YEAR(Ne1Čer+8)=RokKalendáře,MONTH(Ne1Čer+8)=6),Ne1Čer+8,\"\"))","v":"2018-06-04"},{"$f":"IF(DAY(Ne1Čer)=1,IF(AND(YEAR(Ne1Čer+2)=RokKalendáře,MONTH(Ne1Čer+2)=6),Ne1Čer+2,\"\"),IF(AND(YEAR(Ne1Čer+9)=RokKalendáře,MONTH(Ne1Čer+9)=6),Ne1Čer+9,\"\"))","v":"2018-06-05"},{"$f":"IF(DAY(Ne1Čer)=1,IF(AND(YEAR(Ne1Čer+3)=RokKalendáře,MONTH(Ne1Čer+3)=6),Ne1Čer+3,\"\"),IF(AND(YEAR(Ne1Čer+10)=RokKalendáře,MONTH(Ne1Čer+10)=6),Ne1Čer+10,\"\"))","v":"2018-06-06"},{"$f":"IF(DAY(Ne1Čer)=1,IF(AND(YEAR(Ne1Čer+4)=RokKalendáře,MONTH(Ne1Čer+4)=6),Ne1Čer+4,\"\"),IF(AND(YEAR(Ne1Čer+11)=RokKalendáře,MONTH(Ne1Čer+11)=6),Ne1Čer+11,\"\"))","v":"2018-06-07"},{"$f":"IF(DAY(Ne1Čer)=1,IF(AND(YEAR(Ne1Čer+5)=RokKalendáře,MONTH(Ne1Čer+5)=6),Ne1Čer+5,\"\"),IF(AND(YEAR(Ne1Čer+12)=RokKalendáře,MONTH(Ne1Čer+12)=6),Ne1Čer+12,\"\"))","v":"2018-06-08"},{"$f":"IF(DAY(Ne1Čer)=1,IF(AND(YEAR(Ne1Čer+6)=RokKalendáře,MONTH(Ne1Čer+6)=6),Ne1Čer+6,\"\"),IF(AND(YEAR(Ne1Čer+13)=RokKalendáře,MONTH(Ne1Čer+13)=6),Ne1Čer+13,\"\"))","v":"2018-06-09"},{"$f":"IF(DAY(Ne1Čer)=1,IF(AND(YEAR(Ne1Čer+7)=RokKalendáře,MONTH(Ne1Čer+7)=6),Ne1Čer+7,\"\"),IF(AND(YEAR(Ne1Čer+14)=RokKalendáře,MONTH(Ne1Čer+14)=6),Ne1Čer+14,\"\"))","v":"2018-06-10"}]
[]
[null,{"$f":"IF(DAY(Ne1Čer)=1,IF(AND(YEAR(Ne1Čer+8)=RokKalendáře,MONTH(Ne1Čer+8)=6),Ne1Čer+8,\"\"),IF(AND(YEAR(Ne1Čer+15)=RokKalendáře,MONTH(Ne1Čer+15)=6),Ne1Čer+15,\"\"))","v":"2018-06-11"},{"$f":"IF(DAY(Ne1Čer)=1,IF(AND(YEAR(Ne1Čer+9)=RokKalendáře,MONTH(Ne1Čer+9)=6),Ne1Čer+9,\"\"),IF(AND(YEAR(Ne1Čer+16)=RokKalendáře,MONTH(Ne1Čer+16)=6),Ne1Čer+16,\"\"))","v":"2018-06-12"},{"$f":"IF(DAY(Ne1Čer)=1,IF(AND(YEAR(Ne1Čer+10)=RokKalendáře,MONTH(Ne1Čer+10)=6),Ne1Čer+10,\"\"),IF(AND(YEAR(Ne1Čer+17)=RokKalendáře,MONTH(Ne1Čer+17)=6),Ne1Čer+17,\"\"))","v":"2018-06-13"},{"$f":"IF(DAY(Ne1Čer)=1,IF(AND(YEAR(Ne1Čer+11)=RokKalendáře,MONTH(Ne1Čer+11)=6),Ne1Čer+11,\"\"),IF(AND(YEAR(Ne1Čer+18)=RokKalendáře,MONTH(Ne1Čer+18)=6),Ne1Čer+18,\"\"))","v":"2018-06-14"},{"$f":"IF(DAY(Ne1Čer)=1,IF(AND(YEAR(Ne1Čer+12)=RokKalendáře,MONTH(Ne1Čer+12)=6),Ne1Čer+12,\"\"),IF(AND(YEAR(Ne1Čer+19)=RokKalendáře,MONTH(Ne1Čer+19)=6),Ne1Čer+19,\"\"))","v":"2018-06-15"},{"$f":"IF(DAY(Ne1Čer)=1,IF(AND(YEAR(Ne1Čer+13)=RokKalendáře,MONTH(Ne1Čer+13)=6),Ne1Čer+13,\"\"),IF(AND(YEAR(Ne1Čer+20)=RokKalendáře,MONTH(Ne1Čer+20)=6),Ne1Čer+20,\"\"))","v":"2018-06-16"},{"$f":"IF(DAY(Ne1Čer)=1,IF(AND(YEAR(Ne1Čer+14)=RokKalendáře,MONTH(Ne1Čer+14)=6),Ne1Čer+14,\"\"),IF(AND(YEAR(Ne1Čer+21)=RokKalendáře,MONTH(Ne1Čer+21)=6),Ne1Čer+21,\"\"))","v":"2018-06-17"}]
[]
[null,{"$f":"IF(DAY(Ne1Čer)=1,IF(AND(YEAR(Ne1Čer+15)=RokKalendáře,MONTH(Ne1Čer+15)=6),Ne1Čer+15,\"\"),IF(AND(YEAR(Ne1Čer+22)=RokKalendáře,MONTH(Ne1Čer+22)=6),Ne1Čer+22,\"\"))","v":"2018-06-18"},{"$f":"IF(DAY(Ne1Čer)=1,IF(AND(YEAR(Ne1Čer+16)=RokKalendáře,MONTH(Ne1Čer+16)=6),Ne1Čer+16,\"\"),IF(AND(YEAR(Ne1Čer+23)=RokKalendáře,MONTH(Ne1Čer+23)=6),Ne1Čer+23,\"\"))","v":"2018-06-19"},{"$f":"IF(DAY(Ne1Čer)=1,IF(AND(YEAR(Ne1Čer+17)=RokKalendáře,MONTH(Ne1Čer+17)=6),Ne1Čer+17,\"\"),IF(AND(YEAR(Ne1Čer+24)=RokKalendáře,MONTH(Ne1Čer+24)=6),Ne1Čer+24,\"\"))","v":"2018-06-20"},{"$f":"IF(DAY(Ne1Čer)=1,IF(AND(YEAR(Ne1Čer+18)=RokKalendáře,MONTH(Ne1Čer+18)=6),Ne1Čer+18,\"\"),IF(AND(YEAR(Ne1Čer+25)=RokKalendáře,MONTH(Ne1Čer+25)=6),Ne1Čer+25,\"\"))","v":"2018-06-21"},{"$f":"IF(DAY(Ne1Čer)=1,IF(AND(YEAR(Ne1Čer+19)=RokKalendáře,MONTH(Ne1Čer+19)=6),Ne1Čer+19,\"\"),IF(AND(YEAR(Ne1Čer+26)=RokKalendáře,MONTH(Ne1Čer+26)=6),Ne1Čer+26,\"\"))","v":"2018-06-22"},{"$f":"IF(DAY(Ne1Čer)=1,IF(AND(YEAR(Ne1Čer+20)=RokKalendáře,MONTH(Ne1Čer+20)=6),Ne1Čer+20,\"\"),IF(AND(YEAR(Ne1Čer+27)=RokKalendáře,MONTH(Ne1Čer+27)=6),Ne1Čer+27,\"\"))","v":"2018-06-23"},{"$f":"IF(DAY(Ne1Čer)=1,IF(AND(YEAR(Ne1Čer+21)=RokKalendáře,MONTH(Ne1Čer+21)=6),Ne1Čer+21,\"\"),IF(AND(YEAR(Ne1Čer+28)=RokKalendáře,MONTH(Ne1Čer+28)=6),Ne1Čer+28,\"\"))","v":"2018-06-24"}]
[]
[null,{"$f":"IF(DAY(Ne1Čer)=1,IF(AND(YEAR(Ne1Čer+22)=RokKalendáře,MONTH(Ne1Čer+22)=6),Ne1Čer+22,\"\"),IF(AND(YEAR(Ne1Čer+29)=RokKalendáře,MONTH(Ne1Čer+29)=6),Ne1Čer+29,\"\"))","v":"2018-06-25"},{"$f":"IF(DAY(Ne1Čer)=1,IF(AND(YEAR(Ne1Čer+23)=RokKalendáře,MONTH(Ne1Čer+23)=6),Ne1Čer+23,\"\"),IF(AND(YEAR(Ne1Čer+30)=RokKalendáře,MONTH(Ne1Čer+30)=6),Ne1Čer+30,\"\"))","v":"2018-06-26"},{"$f":"IF(DAY(Ne1Čer)=1,IF(AND(YEAR(Ne1Čer+24)=RokKalendáře,MONTH(Ne1Čer+24)=6),Ne1Čer+24,\"\"),IF(AND(YEAR(Ne1Čer+31)=RokKalendáře,MONTH(Ne1Čer+31)=6),Ne1Čer+31,\"\"))","v":"2018-06-27"},{"$f":"IF(DAY(Ne1Čer)=1,IF(AND(YEAR(Ne1Čer+25)=RokKalendáře,MONTH(Ne1Čer+25)=6),Ne1Čer+25,\"\"),IF(AND(YEAR(Ne1Čer+32)=RokKalendáře,MONTH(Ne1Čer+32)=6),Ne1Čer+32,\"\"))","v":"2018-06-28"},{"$f":"IF(DAY(Ne1Čer)=1,IF(AND(YEAR(Ne1Čer+26)=RokKalendáře,MONTH(Ne1Čer+26)=6),Ne1Čer+26,\"\"),IF(AND(YEAR(Ne1Čer+33)=RokKalendáře,MONTH(Ne1Čer+33)=6),Ne1Čer+33,\"\"))","v":"2018-06-29"},{"$f":"IF(DAY(Ne1Čer)=1,IF(AND(YEAR(Ne1Čer+27)=RokKalendáře,MONTH(Ne1Čer+27)=6),Ne1Čer+27,\"\"),IF(AND(YEAR(Ne1Čer+34)=RokKalendáře,MONTH(Ne1Čer+34)=6),Ne1Čer+34,\"\"))","v":"2018-06-30"},{"$f":"IF(DAY(Ne1Čer)=1,IF(AND(YEAR(Ne1Čer+28)=RokKalendáře,MONTH(Ne1Čer+28)=6),Ne1Čer+28,\"\"),IF(AND(YEAR(Ne1Čer+35)=RokKalendáře,MONTH(Ne1Čer+35)=6),Ne1Čer+35,\"\"))","v":""}]
[]
[null,{"$f":"IF(DAY(Ne1Čer)=1,IF(AND(YEAR(Ne1Čer+29)=RokKalendáře,MONTH(Ne1Čer+29)=6),Ne1Čer+29,\"\"),IF(AND(YEAR(Ne1Čer+36)=RokKalendáře,MONTH(Ne1Čer+36)=6),Ne1Čer+36,\"\"))","v":""},{"$f":"IF(DAY(Ne1Čer)=1,IF(AND(YEAR(Ne1Čer+30)=RokKalendáře,MONTH(Ne1Čer+30)=6),Ne1Čer+30,\"\"),IF(AND(YEAR(Ne1Čer+37)=RokKalendáře,MONTH(Ne1Čer+37)=6),Ne1Čer+37,\"\"))","v":""},"POZNÁMKY:"]

{"sheet":"Červenec","index":6,"n_rows":15,"n_cols":8,"rows_kept":15,"merged":[[2,1,2,5],[14,3,14,7],[15,3,15,7]]}
[]
[]
[null,{"$f":"UPPER(TEXT(DATE(RokKalendáře,7,1),\"mmmm rrrr\"))","v":"ČERVENEC 2018"}]
[null,"PONDĚLÍ","ÚTERÝ","STŘEDA","ČTVRTEK","PÁTEK","SOBOTA","NEDĚLE"]
[null,{"$f":"IF(DAY(Ne1Čvc)=1,\"\",IF(AND(YEAR(Ne1Čvc+1)=RokKalendáře,MONTH(Ne1Čvc+1)=7),Ne1Čvc+1,\"\"))","v":""},{"$f":"IF(DAY(Ne1Čvc)=1,\"\",IF(AND(YEAR(Ne1Čvc+2)=RokKalendáře,MONTH(Ne1Čvc+2)=7),Ne1Čvc+2,\"\"))","v":""},{"$f":"IF(DAY(Ne1Čvc)=1,\"\",IF(AND(YEAR(Ne1Čvc+3)=RokKalendáře,MONTH(Ne1Čvc+3)=7),Ne1Čvc+3,\"\"))","v":""},{"$f":"IF(DAY(Ne1Čvc)=1,\"\",IF(AND(YEAR(Ne1Čvc+4)=RokKalendáře,MONTH(Ne1Čvc+4)=7),Ne1Čvc+4,\"\"))","v":""},{"$f":"IF(DAY(Ne1Čvc)=1,\"\",IF(AND(YEAR(Ne1Čvc+5)=RokKalendáře,MONTH(Ne1Čvc+5)=7),Ne1Čvc+5,\"\"))","v":""},{"$f":"IF(DAY(Ne1Čvc)=1,\"\",IF(AND(YEAR(Ne1Čvc+6)=RokKalendáře,MONTH(Ne1Čvc+6)=7),Ne1Čvc+6,\"\"))","v":""},{"$f":"IF(DAY(Ne1Čvc)=1,IF(AND(YEAR(Ne1Čvc)=RokKalendáře,MONTH(Ne1Čvc)=7),Ne1Čvc,\"\"),IF(AND(YEAR(Ne1Čvc+7)=RokKalendáře,MONTH(Ne1Čvc+7)=7),Ne1Čvc+7,\"\"))","v":"2018-07-01"}]
[]
[null,{"$f":"IF(DAY(Ne1Čvc)=1,IF(AND(YEAR(Ne1Čvc+1)=RokKalendáře,MONTH(Ne1Čvc+1)=7),Ne1Čvc+1,\"\"),IF(AND(YEAR(Ne1Čvc+8)=RokKalendáře,MONTH(Ne1Čvc+8)=7),Ne1Čvc+8,\"\"))","v":"2018-07-02"},{"$f":"IF(DAY(Ne1Čvc)=1,IF(AND(YEAR(Ne1Čvc+2)=RokKalendáře,MONTH(Ne1Čvc+2)=7),Ne1Čvc+2,\"\"),IF(AND(YEAR(Ne1Čvc+9)=RokKalendáře,MONTH(Ne1Čvc+9)=7),Ne1Čvc+9,\"\"))","v":"2018-07-03"},{"$f":"IF(DAY(Ne1Čvc)=1,IF(AND(YEAR(Ne1Čvc+3)=RokKalendáře,MONTH(Ne1Čvc+3)=7),Ne1Čvc+3,\"\"),IF(AND(YEAR(Ne1Čvc+10)=RokKalendáře,MONTH(Ne1Čvc+10)=7),Ne1Čvc+10,\"\"))","v":"2018-07-04"},{"$f":"IF(DAY(Ne1Čvc)=1,IF(AND(YEAR(Ne1Čvc+4)=RokKalendáře,MONTH(Ne1Čvc+4)=7),Ne1Čvc+4,\"\"),IF(AND(YEAR(Ne1Čvc+11)=RokKalendáře,MONTH(Ne1Čvc+11)=7),Ne1Čvc+11,\"\"))","v":"2018-07-05"},{"$f":"IF(DAY(Ne1Čvc)=1,IF(AND(YEAR(Ne1Čvc+5)=RokKalendáře,MONTH(Ne1Čvc+5)=7),Ne1Čvc+5,\"\"),IF(AND(YEAR(Ne1Čvc+12)=RokKalendáře,MONTH(Ne1Čvc+12)=7),Ne1Čvc+12,\"\"))","v":"2018-07-06"},{"$f":"IF(DAY(Ne1Čvc)=1,IF(AND(YEAR(Ne1Čvc+6)=RokKalendáře,MONTH(Ne1Čvc+6)=7),Ne1Čvc+6,\"\"),IF(AND(YEAR(Ne1Čvc+13)=RokKalendáře,MONTH(Ne1Čvc+13)=7),Ne1Čvc+13,\"\"))","v":"2018-07-07"},{"$f":"IF(DAY(Ne1Čvc)=1,IF(AND(YEAR(Ne1Čvc+7)=RokKalendáře,MONTH(Ne1Čvc+7)=7),Ne1Čvc+7,\"\"),IF(AND(YEAR(Ne1Čvc+14)=RokKalendáře,MONTH(Ne1Čvc+14)=7),Ne1Čvc+14,\"\"))","v":"2018-07-08"}]
[]
[null,{"$f":"IF(DAY(Ne1Čvc)=1,IF(AND(YEAR(Ne1Čvc+8)=RokKalendáře,MONTH(Ne1Čvc+8)=7),Ne1Čvc+8,\"\"),IF(AND(YEAR(Ne1Čvc+15)=RokKalendáře,MONTH(Ne1Čvc+15)=7),Ne1Čvc+15,\"\"))","v":"2018-07-09"},{"$f":"IF(DAY(Ne1Čvc)=1,IF(AND(YEAR(Ne1Čvc+9)=RokKalendáře,MONTH(Ne1Čvc+9)=7),Ne1Čvc+9,\"\"),IF(AND(YEAR(Ne1Čvc+16)=RokKalendáře,MONTH(Ne1Čvc+16)=7),Ne1Čvc+16,\"\"))","v":"2018-07-10"},{"$f":"IF(DAY(Ne1Čvc)=1,IF(AND(YEAR(Ne1Čvc+10)=RokKalendáře,MONTH(Ne1Čvc+10)=7),Ne1Čvc+10,\"\"),IF(AND(YEAR(Ne1Čvc+17)=RokKalendáře,MONTH(Ne1Čvc+17)=7),Ne1Čvc+17,\"\"))","v":"2018-07-11"},{"$f":"IF(DAY(Ne1Čvc)=1,IF(AND(YEAR(Ne1Čvc+11)=RokKalendáře,MONTH(Ne1Čvc+11)=7),Ne1Čvc+11,\"\"),IF(AND(YEAR(Ne1Čvc+18)=RokKalendáře,MONTH(Ne1Čvc+18)=7),Ne1Čvc+18,\"\"))","v":"2018-07-12"},{"$f":"IF(DAY(Ne1Čvc)=1,IF(AND(YEAR(Ne1Čvc+12)=RokKalendáře,MONTH(Ne1Čvc+12)=7),Ne1Čvc+12,\"\"),IF(AND(YEAR(Ne1Čvc+19)=RokKalendáře,MONTH(Ne1Čvc+19)=7),Ne1Čvc+19,\"\"))","v":"2018-07-13"},{"$f":"IF(DAY(Ne1Čvc)=1,IF(AND(YEAR(Ne1Čvc+13)=RokKalendáře,MONTH(Ne1Čvc+13)=7),Ne1Čvc+13,\"\"),IF(AND(YEAR(Ne1Čvc+20)=RokKalendáře,MONTH(Ne1Čvc+20)=7),Ne1Čvc+20,\"\"))","v":"2018-07-14"},{"$f":"IF(DAY(Ne1Čvc)=1,IF(AND(YEAR(Ne1Čvc+14)=RokKalendáře,MONTH(Ne1Čvc+14)=7),Ne1Čvc+14,\"\"),IF(AND(YEAR(Ne1Čvc+21)=RokKalendáře,MONTH(Ne1Čvc+21)=7),Ne1Čvc+21,\"\"))","v":"2018-07-15"}]
[]
[null,{"$f":"IF(DAY(Ne1Čvc)=1,IF(AND(YEAR(Ne1Čvc+15)=RokKalendáře,MONTH(Ne1Čvc+15)=7),Ne1Čvc+15,\"\"),IF(AND(YEAR(Ne1Čvc+22)=RokKalendáře,MONTH(Ne1Čvc+22)=7),Ne1Čvc+22,\"\"))","v":"2018-07-16"},{"$f":"IF(DAY(Ne1Čvc)=1,IF(AND(YEAR(Ne1Čvc+16)=RokKalendáře,MONTH(Ne1Čvc+16)=7),Ne1Čvc+16,\"\"),IF(AND(YEAR(Ne1Čvc+23)=RokKalendáře,MONTH(Ne1Čvc+23)=7),Ne1Čvc+23,\"\"))","v":"2018-07-17"},{"$f":"IF(DAY(Ne1Čvc)=1,IF(AND(YEAR(Ne1Čvc+17)=RokKalendáře,MONTH(Ne1Čvc+17)=7),Ne1Čvc+17,\"\"),IF(AND(YEAR(Ne1Čvc+24)=RokKalendáře,MONTH(Ne1Čvc+24)=7),Ne1Čvc+24,\"\"))","v":"2018-07-18"},{"$f":"IF(DAY(Ne1Čvc)=1,IF(AND(YEAR(Ne1Čvc+18)=RokKalendáře,MONTH(Ne1Čvc+18)=7),Ne1Čvc+18,\"\"),IF(AND(YEAR(Ne1Čvc+25)=RokKalendáře,MONTH(Ne1Čvc+25)=7),Ne1Čvc+25,\"\"))","v":"2018-07-19"},{"$f":"IF(DAY(Ne1Čvc)=1,IF(AND(YEAR(Ne1Čvc+19)=RokKalendáře,MONTH(Ne1Čvc+19)=7),Ne1Čvc+19,\"\"),IF(AND(YEAR(Ne1Čvc+26)=RokKalendáře,MONTH(Ne1Čvc+26)=7),Ne1Čvc+26,\"\"))","v":"2018-07-20"},{"$f":"IF(DAY(Ne1Čvc)=1,IF(AND(YEAR(Ne1Čvc+20)=RokKalendáře,MONTH(Ne1Čvc+20)=7),Ne1Čvc+20,\"\"),IF(AND(YEAR(Ne1Čvc+27)=RokKalendáře,MONTH(Ne1Čvc+27)=7),Ne1Čvc+27,\"\"))","v":"2018-07-21"},{"$f":"IF(DAY(Ne1Čvc)=1,IF(AND(YEAR(Ne1Čvc+21)=RokKalendáře,MONTH(Ne1Čvc+21)=7),Ne1Čvc+21,\"\"),IF(AND(YEAR(Ne1Čvc+28)=RokKalendáře,MONTH(Ne1Čvc+28)=7),Ne1Čvc+28,\"\"))","v":"2018-07-22"}]
[]
[null,{"$f":"IF(DAY(Ne1Čvc)=1,IF(AND(YEAR(Ne1Čvc+22)=RokKalendáře,MONTH(Ne1Čvc+22)=7),Ne1Čvc+22,\"\"),IF(AND(YEAR(Ne1Čvc+29)=RokKalendáře,MONTH(Ne1Čvc+29)=7),Ne1Čvc+29,\"\"))","v":"2018-07-23"},{"$f":"IF(DAY(Ne1Čvc)=1,IF(AND(YEAR(Ne1Čvc+23)=RokKalendáře,MONTH(Ne1Čvc+23)=7),Ne1Čvc+23,\"\"),IF(AND(YEAR(Ne1Čvc+30)=RokKalendáře,MONTH(Ne1Čvc+30)=7),Ne1Čvc+30,\"\"))","v":"2018-07-24"},{"$f":"IF(DAY(Ne1Čvc)=1,IF(AND(YEAR(Ne1Čvc+24)=RokKalendáře,MONTH(Ne1Čvc+24)=7),Ne1Čvc+24,\"\"),IF(AND(YEAR(Ne1Čvc+31)=RokKalendáře,MONTH(Ne1Čvc+31)=7),Ne1Čvc+31,\"\"))","v":"2018-07-25"},{"$f":"IF(DAY(Ne1Čvc)=1,IF(AND(YEAR(Ne1Čvc+25)=RokKalendáře,MONTH(Ne1Čvc+25)=7),Ne1Čvc+25,\"\"),IF(AND(YEAR(Ne1Čvc+32)=RokKalendáře,MONTH(Ne1Čvc+32)=7),Ne1Čvc+32,\"\"))","v":"2018-07-26"},{"$f":"IF(DAY(Ne1Čvc)=1,IF(AND(YEAR(Ne1Čvc+26)=RokKalendáře,MONTH(Ne1Čvc+26)=7),Ne1Čvc+26,\"\"),IF(AND(YEAR(Ne1Čvc+33)=RokKalendáře,MONTH(Ne1Čvc+33)=7),Ne1Čvc+33,\"\"))","v":"2018-07-27"},{"$f":"IF(DAY(Ne1Čvc)=1,IF(AND(YEAR(Ne1Čvc+27)=RokKalendáře,MONTH(Ne1Čvc+27)=7),Ne1Čvc+27,\"\"),IF(AND(YEAR(Ne1Čvc+34)=RokKalendáře,MONTH(Ne1Čvc+34)=7),Ne1Čvc+34,\"\"))","v":"2018-07-28"},{"$f":"IF(DAY(Ne1Čvc)=1,IF(AND(YEAR(Ne1Čvc+28)=RokKalendáře,MONTH(Ne1Čvc+28)=7),Ne1Čvc+28,\"\"),IF(AND(YEAR(Ne1Čvc+35)=RokKalendáře,MONTH(Ne1Čvc+35)=7),Ne1Čvc+35,\"\"))","v":"2018-07-29"}]
[]
[null,{"$f":"IF(DAY(Ne1Čvc)=1,IF(AND(YEAR(Ne1Čvc+29)=RokKalendáře,MONTH(Ne1Čvc+29)=7),Ne1Čvc+29,\"\"),IF(AND(YEAR(Ne1Čvc+36)=RokKalendáře,MONTH(Ne1Čvc+36)=7),Ne1Čvc+36,\"\"))","v":"2018-07-30"},{"$f":"IF(DAY(Ne1Čvc)=1,IF(AND(YEAR(Ne1Čvc+30)=RokKalendáře,MONTH(Ne1Čvc+30)=7),Ne1Čvc+30,\"\"),IF(AND(YEAR(Ne1Čvc+37)=RokKalendáře,MONTH(Ne1Čvc+37)=7),Ne1Čvc+37,\"\"))","v":"2018-07-31"},"POZNÁMKY:"]

{"sheet":"Srpen","index":7,"n_rows":15,"n_cols":8,"rows_kept":15,"merged":[[2,1,2,5],[14,3,14,7],[15,3,15,7]]}
[]
[]
[null,{"$f":"UPPER(TEXT(DATE(RokKalendáře,8,1),\"mmmm rrrr\"))","v":"SRPEN 2018"}]
[null,"PONDĚLÍ","ÚTERÝ","STŘEDA","ČTVRTEK","PÁTEK","SOBOTA","NEDĚLE"]
[null,{"$f":"IF(DAY(Ne1Srp)=1,\"\",IF(AND(YEAR(Ne1Srp+1)=RokKalendáře,MONTH(Ne1Srp+1)=8),Ne1Srp+1,\"\"))","v":""},{"$f":"IF(DAY(Ne1Srp)=1,\"\",IF(AND(YEAR(Ne1Srp+2)=RokKalendáře,MONTH(Ne1Srp+2)=8),Ne1Srp+2,\"\"))","v":""},{"$f":"IF(DAY(Ne1Srp)=1,\"\",IF(AND(YEAR(Ne1Srp+3)=RokKalendáře,MONTH(Ne1Srp+3)=8),Ne1Srp+3,\"\"))","v":"2018-08-01"},{"$f":"IF(DAY(Ne1Srp)=1,\"\",IF(AND(YEAR(Ne1Srp+4)=RokKalendáře,MONTH(Ne1Srp+4)=8),Ne1Srp+4,\"\"))","v":"2018-08-02"},{"$f":"IF(DAY(Ne1Srp)=1,\"\",IF(AND(YEAR(Ne1Srp+5)=RokKalendáře,MONTH(Ne1Srp+5)=8),Ne1Srp+5,\"\"))","v":"2018-08-03"},{"$f":"IF(DAY(Ne1Srp)=1,\"\",IF(AND(YEAR(Ne1Srp+6)=RokKalendáře,MONTH(Ne1Srp+6)=8),Ne1Srp+6,\"\"))","v":"2018-08-04"},{"$f":"IF(DAY(Ne1Srp)=1,IF(AND(YEAR(Ne1Srp)=RokKalendáře,MONTH(Ne1Srp)=8),Ne1Srp,\"\"),IF(AND(YEAR(Ne1Srp+7)=RokKalendáře,MONTH(Ne1Srp+7)=8),Ne1Srp+7,\"\"))","v":"2018-08-05"}]
[]
[null,{"$f":"IF(DAY(Ne1Srp)=1,IF(AND(YEAR(Ne1Srp+1)=RokKalendáře,MONTH(Ne1Srp+1)=8),Ne1Srp+1,\"\"),IF(AND(YEAR(Ne1Srp+8)=RokKalendáře,MONTH(Ne1Srp+8)=8),Ne1Srp+8,\"\"))","v":"2018-08-06"},{"$f":"IF(DAY(Ne1Srp)=1,IF(AND(YEAR(Ne1Srp+2)=RokKalendáře,MONTH(Ne1Srp+2)=8),Ne1Srp+2,\"\"),IF(AND(YEAR(Ne1Srp+9)=RokKalendáře,MONTH(Ne1Srp+9)=8),Ne1Srp+9,\"\"))","v":"2018-08-07"},{"$f":"IF(DAY(Ne1Srp)=1,IF(AND(YEAR(Ne1Srp+3)=RokKalendáře,MONTH(Ne1Srp+3)=8),Ne1Srp+3,\"\"),IF(AND(YEAR(Ne1Srp+10)=RokKalendáře,MONTH(Ne1Srp+10)=8),Ne1Srp+10,\"\"))","v":"2018-08-08"},{"$f":"IF(DAY(Ne1Srp)=1,IF(AND(YEAR(Ne1Srp+4)=RokKalendáře,MONTH(Ne1Srp+4)=8),Ne1Srp+4,\"\"),IF(AND(YEAR(Ne1Srp+11)=RokKalendáře,MONTH(Ne1Srp+11)=8),Ne1Srp+11,\"\"))","v":"2018-08-09"},{"$f":"IF(DAY(Ne1Srp)=1,IF(AND(YEAR(Ne1Srp+5)=RokKalendáře,MONTH(Ne1Srp+5)=8),Ne1Srp+5,\"\"),IF(AND(YEAR(Ne1Srp+12)=RokKalendáře,MONTH(Ne1Srp+12)=8),Ne1Srp+12,\"\"))","v":"2018-08-10"},{"$f":"IF(DAY(Ne1Srp)=1,IF(AND(YEAR(Ne1Srp+6)=RokKalendáře,MONTH(Ne1Srp+6)=8),Ne1Srp+6,\"\"),IF(AND(YEAR(Ne1Srp+13)=RokKalendáře,MONTH(Ne1Srp+13)=8),Ne1Srp+13,\"\"))","v":"2018-08-11"},{"$f":"IF(DAY(Ne1Srp)=1,IF(AND(YEAR(Ne1Srp+7)=RokKalendáře,MONTH(Ne1Srp+7)=8),Ne1Srp+7,\"\"),IF(AND(YEAR(Ne1Srp+14)=RokKalendáře,MONTH(Ne1Srp+14)=8),Ne1Srp+14,\"\"))","v":"2018-08-12"}]
[]
[null,{"$f":"IF(DAY(Ne1Srp)=1,IF(AND(YEAR(Ne1Srp+8)=RokKalendáře,MONTH(Ne1Srp+8)=8),Ne1Srp+8,\"\"),IF(AND(YEAR(Ne1Srp+15)=RokKalendáře,MONTH(Ne1Srp+15)=8),Ne1Srp+15,\"\"))","v":"2018-08-13"},{"$f":"IF(DAY(Ne1Srp)=1,IF(AND(YEAR(Ne1Srp+9)=RokKalendáře,MONTH(Ne1Srp+9)=8),Ne1Srp+9,\"\"),IF(AND(YEAR(Ne1Srp+16)=RokKalendáře,MONTH(Ne1Srp+16)=8),Ne1Srp+16,\"\"))","v":"2018-08-14"},{"$f":"IF(DAY(Ne1Srp)=1,IF(AND(YEAR(Ne1Srp+10)=RokKalendáře,MONTH(Ne1Srp+10)=8),Ne1Srp+10,\"\"),IF(AND(YEAR(Ne1Srp+17)=RokKalendáře,MONTH(Ne1Srp+17)=8),Ne1Srp+17,\"\"))","v":"2018-08-15"},{"$f":"IF(DAY(Ne1Srp)=1,IF(AND(YEAR(Ne1Srp+11)=RokKalendáře,MONTH(Ne1Srp+11)=8),Ne1Srp+11,\"\"),IF(AND(YEAR(Ne1Srp+18)=RokKalendáře,MONTH(Ne1Srp+18)=8),Ne1Srp+18,\"\"))","v":"2018-08-16"},{"$f":"IF(DAY(Ne1Srp)=1,IF(AND(YEAR(Ne1Srp+12)=RokKalendáře,MONTH(Ne1Srp+12)=8),Ne1Srp+12,\"\"),IF(AND(YEAR(Ne1Srp+19)=RokKalendáře,MONTH(Ne1Srp+19)=8),Ne1Srp+19,\"\"))","v":"2018-08-17"},{"$f":"IF(DAY(Ne1Srp)=1,IF(AND(YEAR(Ne1Srp+13)=RokKalendáře,MONTH(Ne1Srp+13)=8),Ne1Srp+13,\"\"),IF(AND(YEAR(Ne1Srp+20)=RokKalendáře,MONTH(Ne1Srp+20)=8),Ne1Srp+20,\"\"))","v":"2018-08-18"},{"$f":"IF(DAY(Ne1Srp)=1,IF(AND(YEAR(Ne1Srp+14)=RokKalendáře,MONTH(Ne1Srp+14)=8),Ne1Srp+14,\"\"),IF(AND(YEAR(Ne1Srp+21)=RokKalendáře,MONTH(Ne1Srp+21)=8),Ne1Srp+21,\"\"))","v":"2018-08-19"}]
[]
[null,{"$f":"IF(DAY(Ne1Srp)=1,IF(AND(YEAR(Ne1Srp+15)=RokKalendáře,MONTH(Ne1Srp+15)=8),Ne1Srp+15,\"\"),IF(AND(YEAR(Ne1Srp+22)=RokKalendáře,MONTH(Ne1Srp+22)=8),Ne1Srp+22,\"\"))","v":"2018-08-20"},{"$f":"IF(DAY(Ne1Srp)=1,IF(AND(YEAR(Ne1Srp+16)=RokKalendáře,MONTH(Ne1Srp+16)=8),Ne1Srp+16,\"\"),IF(AND(YEAR(Ne1Srp+23)=RokKalendáře,MONTH(Ne1Srp+23)=8),Ne1Srp+23,\"\"))","v":"2018-08-21"},{"$f":"IF(DAY(Ne1Srp)=1,IF(AND(YEAR(Ne1Srp+17)=RokKalendáře,MONTH(Ne1Srp+17)=8),Ne1Srp+17,\"\"),IF(AND(YEAR(Ne1Srp+24)=RokKalendáře,MONTH(Ne1Srp+24)=8),Ne1Srp+24,\"\"))","v":"2018-08-22"},{"$f":"IF(DAY(Ne1Srp)=1,IF(AND(YEAR(Ne1Srp+18)=RokKalendáře,MONTH(Ne1Srp+18)=8),Ne1Srp+18,\"\"),IF(AND(YEAR(Ne1Srp+25)=RokKalendáře,MONTH(Ne1Srp+25)=8),Ne1Srp+25,\"\"))","v":"2018-08-23"},{"$f":"IF(DAY(Ne1Srp)=1,IF(AND(YEAR(Ne1Srp+19)=RokKalendáře,MONTH(Ne1Srp+19)=8),Ne1Srp+19,\"\"),IF(AND(YEAR(Ne1Srp+26)=RokKalendáře,MONTH(Ne1Srp+26)=8),Ne1Srp+26,\"\"))","v":"2018-08-24"},{"$f":"IF(DAY(Ne1Srp)=1,IF(AND(YEAR(Ne1Srp+20)=RokKalendáře,MONTH(Ne1Srp+20)=8),Ne1Srp+20,\"\"),IF(AND(YEAR(Ne1Srp+27)=RokKalendáře,MONTH(Ne1Srp+27)=8),Ne1Srp+27,\"\"))","v":"2018-08-25"},{"$f":"IF(DAY(Ne1Srp)=1,IF(AND(YEAR(Ne1Srp+21)=RokKalendáře,MONTH(Ne1Srp+21)=8),Ne1Srp+21,\"\"),IF(AND(YEAR(Ne1Srp+28)=RokKalendáře,MONTH(Ne1Srp+28)=8),Ne1Srp+28,\"\"))","v":"2018-08-26"}]
[]
[null,{"$f":"IF(DAY(Ne1Srp)=1,IF(AND(YEAR(Ne1Srp+22)=RokKalendáře,MONTH(Ne1Srp+22)=8),Ne1Srp+22,\"\"),IF(AND(YEAR(Ne1Srp+29)=RokKalendáře,MONTH(Ne1Srp+29)=8),Ne1Srp+29,\"\"))","v":"2018-08-27"},{"$f":"IF(DAY(Ne1Srp)=1,IF(AND(YEAR(Ne1Srp+23)=RokKalendáře,MONTH(Ne1Srp+23)=8),Ne1Srp+23,\"\"),IF(AND(YEAR(Ne1Srp+30)=RokKalendáře,MONTH(Ne1Srp+30)=8),Ne1Srp+30,\"\"))","v":"2018-08-28"},{"$f":"IF(DAY(Ne1Srp)=1,IF(AND(YEAR(Ne1Srp+24)=RokKalendáře,MONTH(Ne1Srp+24)=8),Ne1Srp+24,\"\"),IF(AND(YEAR(Ne1Srp+31)=RokKalendáře,MONTH(Ne1Srp+31)=8),Ne1Srp+31,\"\"))","v":"2018-08-29"},{"$f":"IF(DAY(Ne1Srp)=1,IF(AND(YEAR(Ne1Srp+25)=RokKalendáře,MONTH(Ne1Srp+25)=8),Ne1Srp+25,\"\"),IF(AND(YEAR(Ne1Srp+32)=RokKalendáře,MONTH(Ne1Srp+32)=8),Ne1Srp+32,\"\"))","v":"2018-08-30"},{"$f":"IF(DAY(Ne1Srp)=1,IF(AND(YEAR(Ne1Srp+26)=RokKalendáře,MONTH(Ne1Srp+26)=8),Ne1Srp+26,\"\"),IF(AND(YEAR(Ne1Srp+33)=RokKalendáře,MONTH(Ne1Srp+33)=8),Ne1Srp+33,\"\"))","v":"2018-08-31"},{"$f":"IF(DAY(Ne1Srp)=1,IF(AND(YEAR(Ne1Srp+27)=RokKalendáře,MONTH(Ne1Srp+27)=8),Ne1Srp+27,\"\"),IF(AND(YEAR(Ne1Srp+34)=RokKalendáře,MONTH(Ne1Srp+34)=8),Ne1Srp+34,\"\"))","v":""},{"$f":"IF(DAY(Ne1Srp)=1,IF(AND(YEAR(Ne1Srp+28)=RokKalendáře,MONTH(Ne1Srp+28)=8),Ne1Srp+28,\"\"),IF(AND(YEAR(Ne1Srp+35)=RokKalendáře,MONTH(Ne1Srp+35)=8),Ne1Srp+35,\"\"))","v":""}]
[]
[null,{"$f":"IF(DAY(Ne1Srp)=1,IF(AND(YEAR(Ne1Srp+29)=RokKalendáře,MONTH(Ne1Srp+29)=8),Ne1Srp+29,\"\"),IF(AND(YEAR(Ne1Srp+36)=RokKalendáře,MONTH(Ne1Srp+36)=8),Ne1Srp+36,\"\"))","v":""},{"$f":"IF(DAY(Ne1Srp)=1,IF(AND(YEAR(Ne1Srp+30)=RokKalendáře,MONTH(Ne1Srp+30)=8),Ne1Srp+30,\"\"),IF(AND(YEAR(Ne1Srp+37)=RokKalendáře,MONTH(Ne1Srp+37)=8),Ne1Srp+37,\"\"))","v":""},"POZNÁMKY:"]

{"sheet":"Září","index":8,"n_rows":15,"n_cols":8,"rows_kept":15,"merged":[[2,1,2,5],[14,3,14,7],[15,3,15,7]]}
[]
[]
[null,{"$f":"UPPER(TEXT(DATE(RokKalendáře,9,1),\"mmmm rrrr\"))","v":"ZÁŘÍ 2018"}]
[null,"PONDĚLÍ","ÚTERÝ","STŘEDA","ČTVRTEK","PÁTEK","SOBOTA","NEDĚLE"]
[null,{"$f":"IF(DAY(Ne1Zář)=1,\"\",IF(AND(YEAR(Ne1Zář+1)=RokKalendáře,MONTH(Ne1Zář+1)=9),Ne1Zář+1,\"\"))","v":""},{"$f":"IF(DAY(Ne1Zář)=1,\"\",IF(AND(YEAR(Ne1Zář+2)=RokKalendáře,MONTH(Ne1Zář+2)=9),Ne1Zář+2,\"\"))","v":""},{"$f":"IF(DAY(Ne1Zář)=1,\"\",IF(AND(YEAR(Ne1Zář+3)=RokKalendáře,MONTH(Ne1Zář+3)=9),Ne1Zář+3,\"\"))","v":""},{"$f":"IF(DAY(Ne1Zář)=1,\"\",IF(AND(YEAR(Ne1Zář+4)=RokKalendáře,MONTH(Ne1Zář+4)=9),Ne1Zář+4,\"\"))","v":""},{"$f":"IF(DAY(Ne1Zář)=1,\"\",IF(AND(YEAR(Ne1Zář+5)=RokKalendáře,MONTH(Ne1Zář+5)=9),Ne1Zář+5,\"\"))","v":""},{"$f":"IF(DAY(Ne1Zář)=1,\"\",IF(AND(YEAR(Ne1Zář+6)=RokKalendáře,MONTH(Ne1Zář+6)=9),Ne1Zář+6,\"\"))","v":"2018-09-01"},{"$f":"IF(DAY(Ne1Zář)=1,IF(AND(YEAR(Ne1Zář)=RokKalendáře,MONTH(Ne1Zář)=9),Ne1Zář,\"\"),IF(AND(YEAR(Ne1Zář+7)=RokKalendáře,MONTH(Ne1Zář+7)=9),Ne1Zář+7,\"\"))","v":"2018-09-02"}]
[]
[null,{"$f":"IF(DAY(Ne1Zář)=1,IF(AND(YEAR(Ne1Zář+1)=RokKalendáře,MONTH(Ne1Zář+1)=9),Ne1Zář+1,\"\"),IF(AND(YEAR(Ne1Zář+8)=RokKalendáře,MONTH(Ne1Zář+8)=9),Ne1Zář+8,\"\"))","v":"2018-09-03"},{"$f":"IF(DAY(Ne1Zář)=1,IF(AND(YEAR(Ne1Zář+2)=RokKalendáře,MONTH(Ne1Zář+2)=9),Ne1Zář+2,\"\"),IF(AND(YEAR(Ne1Zář+9)=RokKalendáře,MONTH(Ne1Zář+9)=9),Ne1Zář+9,\"\"))","v":"2018-09-04"},{"$f":"IF(DAY(Ne1Zář)=1,IF(AND(YEAR(Ne1Zář+3)=RokKalendáře,MONTH(Ne1Zář+3)=9),Ne1Zář+3,\"\"),IF(AND(YEAR(Ne1Zář+10)=RokKalendáře,MONTH(Ne1Zář+10)=9),Ne1Zář+10,\"\"))","v":"2018-09-05"},{"$f":"IF(DAY(Ne1Zář)=1,IF(AND(YEAR(Ne1Zář+4)=RokKalendáře,MONTH(Ne1Zář+4)=9),Ne1Zář+4,\"\"),IF(AND(YEAR(Ne1Zář+11)=RokKalendáře,MONTH(Ne1Zář+11)=9),Ne1Zář+11,\"\"))","v":"2018-09-06"},{"$f":"IF(DAY(Ne1Zář)=1,IF(AND(YEAR(Ne1Zář+5)=RokKalendáře,MONTH(Ne1Zář+5)=9),Ne1Zář+5,\"\"),IF(AND(YEAR(Ne1Zář+12)=RokKalendáře,MONTH(Ne1Zář+12)=9),Ne1Zář+12,\"\"))","v":"2018-09-07"},{"$f":"IF(DAY(Ne1Zář)=1,IF(AND(YEAR(Ne1Zář+6)=RokKalendáře,MONTH(Ne1Zář+6)=9),Ne1Zář+6,\"\"),IF(AND(YEAR(Ne1Zář+13)=RokKalendáře,MONTH(Ne1Zář+13)=9),Ne1Zář+13,\"\"))","v":"2018-09-08"},{"$f":"IF(DAY(Ne1Zář)=1,IF(AND(YEAR(Ne1Zář+7)=RokKalendáře,MONTH(Ne1Zář+7)=9),Ne1Zář+7,\"\"),IF(AND(YEAR(Ne1Zář+14)=RokKalendáře,MONTH(Ne1Zář+14)=9),Ne1Zář+14,\"\"))","v":"2018-09-09"}]
[]
[null,{"$f":"IF(DAY(Ne1Zář)=1,IF(AND(YEAR(Ne1Zář+8)=RokKalendáře,MONTH(Ne1Zář+8)=9),Ne1Zář+8,\"\"),IF(AND(YEAR(Ne1Zář+15)=RokKalendáře,MONTH(Ne1Zář+15)=9),Ne1Zář+15,\"\"))","v":"2018-09-10"},{"$f":"IF(DAY(Ne1Zář)=1,IF(AND(YEAR(Ne1Zář+9)=RokKalendáře,MONTH(Ne1Zář+9)=9),Ne1Zář+9,\"\"),IF(AND(YEAR(Ne1Zář+16)=RokKalendáře,MONTH(Ne1Zář+16)=9),Ne1Zář+16,\"\"))","v":"2018-09-11"},{"$f":"IF(DAY(Ne1Zář)=1,IF(AND(YEAR(Ne1Zář+10)=RokKalendáře,MONTH(Ne1Zář+10)=9),Ne1Zář+10,\"\"),IF(AND(YEAR(Ne1Zář+17)=RokKalendáře,MONTH(Ne1Zář+17)=9),Ne1Zář+17,\"\"))","v":"2018-09-12"},{"$f":"IF(DAY(Ne1Zář)=1,IF(AND(YEAR(Ne1Zář+11)=RokKalendáře,MONTH(Ne1Zář+11)=9),Ne1Zář+11,\"\"),IF(AND(YEAR(Ne1Zář+18)=RokKalendáře,MONTH(Ne1Zář+18)=9),Ne1Zář+18,\"\"))","v":"2018-09-13"},{"$f":"IF(DAY(Ne1Zář)=1,IF(AND(YEAR(Ne1Zář+12)=RokKalendáře,MONTH(Ne1Zář+12)=9),Ne1Zář+12,\"\"),IF(AND(YEAR(Ne1Zář+19)=RokKalendáře,MONTH(Ne1Zář+19)=9),Ne1Zář+19,\"\"))","v":"2018-09-14"},{"$f":"IF(DAY(Ne1Zář)=1,IF(AND(YEAR(Ne1Zář+13)=RokKalendáře,MONTH(Ne1Zář+13)=9),Ne1Zář+13,\"\"),IF(AND(YEAR(Ne1Zář+20)=RokKalendáře,MONTH(Ne1Zář+20)=9),Ne1Zář+20,\"\"))","v":"2018-09-15"},{"$f":"IF(DAY(Ne1Zář)=1,IF(AND(YEAR(Ne1Zář+14)=RokKalendáře,MONTH(Ne1Zář+14)=9),Ne1Zář+14,\"\"),IF(AND(YEAR(Ne1Zář+21)=RokKalendáře,MONTH(Ne1Zář+21)=9),Ne1Zář+21,\"\"))","v":"2018-09-16"}]
[]
[null,{"$f":"IF(DAY(Ne1Zář)=1,IF(AND(YEAR(Ne1Zář+15)=RokKalendáře,MONTH(Ne1Zář+15)=9),Ne1Zář+15,\"\"),IF(AND(YEAR(Ne1Zář+22)=RokKalendáře,MONTH(Ne1Zář+22)=9),Ne1Zář+22,\"\"))","v":"2018-09-17"},{"$f":"IF(DAY(Ne1Zář)=1,IF(AND(YEAR(Ne1Zář+16)=RokKalendáře,MONTH(Ne1Zář+16)=9),Ne1Zář+16,\"\"),IF(AND(YEAR(Ne1Zář+23)=RokKalendáře,MONTH(Ne1Zář+23)=9),Ne1Zář+23,\"\"))","v":"2018-09-18"},{"$f":"IF(DAY(Ne1Zář)=1,IF(AND(YEAR(Ne1Zář+17)=RokKalendáře,MONTH(Ne1Zář+17)=9),Ne1Zář+17,\"\"),IF(AND(YEAR(Ne1Zář+24)=RokKalendáře,MONTH(Ne1Zář+24)=9),Ne1Zář+24,\"\"))","v":"2018-09-19"},{"$f":"IF(DAY(Ne1Zář)=1,IF(AND(YEAR(Ne1Zář+18)=RokKalendáře,MONTH(Ne1Zář+18)=9),Ne1Zář+18,\"\"),IF(AND(YEAR(Ne1Zář+25)=RokKalendáře,MONTH(Ne1Zář+25)=9),Ne1Zář+25,\"\"))","v":"2018-09-20"},{"$f":"IF(DAY(Ne1Zář)=1,IF(AND(YEAR(Ne1Zář+19)=RokKalendáře,MONTH(Ne1Zář+19)=9),Ne1Zář+19,\"\"),IF(AND(YEAR(Ne1Zář+26)=RokKalendáře,MONTH(Ne1Zář+26)=9),Ne1Zář+26,\"\"))","v":"2018-09-21"},{"$f":"IF(DAY(Ne1Zář)=1,IF(AND(YEAR(Ne1Zář+20)=RokKalendáře,MONTH(Ne1Zář+20)=9),Ne1Zář+20,\"\"),IF(AND(YEAR(Ne1Zář+27)=RokKalendáře,MONTH(Ne1Zář+27)=9),Ne1Zář+27,\"\"))","v":"2018-09-22"},{"$f":"IF(DAY(Ne1Zář)=1,IF(AND(YEAR(Ne1Zář+21)=RokKalendáře,MONTH(Ne1Zář+21)=9),Ne1Zář+21,\"\"),IF(AND(YEAR(Ne1Zář+28)=RokKalendáře,MONTH(Ne1Zář+28)=9),Ne1Zář+28,\"\"))","v":"2018-09-23"}]
[]
[null,{"$f":"IF(DAY(Ne1Zář)=1,IF(AND(YEAR(Ne1Zář+22)=RokKalendáře,MONTH(Ne1Zář+22)=9),Ne1Zář+22,\"\"),IF(AND(YEAR(Ne1Zář+29)=RokKalendáře,MONTH(Ne1Zář+29)=9),Ne1Zář+29,\"\"))","v":"2018-09-24"},{"$f":"IF(DAY(Ne1Zář)=1,IF(AND(YEAR(Ne1Zář+23)=RokKalendáře,MONTH(Ne1Zář+23)=9),Ne1Zář+23,\"\"),IF(AND(YEAR(Ne1Zář+30)=RokKalendáře,MONTH(Ne1Zář+30)=9),Ne1Zář+30,\"\"))","v":"2018-09-25"},{"$f":"IF(DAY(Ne1Zář)=1,IF(AND(YEAR(Ne1Zář+24)=RokKalendáře,MONTH(Ne1Zář+24)=9),Ne1Zář+24,\"\"),IF(AND(YEAR(Ne1Zář+31)=RokKalendáře,MONTH(Ne1Zář+31)=9),Ne1Zář+31,\"\"))","v":"2018-09-26"},{"$f":"IF(DAY(Ne1Zář)=1,IF(AND(YEAR(Ne1Zář+25)=RokKalendáře,MONTH(Ne1Zář+25)=9),Ne1Zář+25,\"\"),IF(AND(YEAR(Ne1Zář+32)=RokKalendáře,MONTH(Ne1Zář+32)=9),Ne1Zář+32,\"\"))","v":"2018-09-27"},{"$f":"IF(DAY(Ne1Zář)=1,IF(AND(YEAR(Ne1Zář+26)=RokKalendáře,MONTH(Ne1Zář+26)=9),Ne1Zář+26,\"\"),IF(AND(YEAR(Ne1Zář+33)=RokKalendáře,MONTH(Ne1Zář+33)=9),Ne1Zář+33,\"\"))","v":"2018-09-28"},{"$f":"IF(DAY(Ne1Zář)=1,IF(AND(YEAR(Ne1Zář+27)=RokKalendáře,MONTH(Ne1Zář+27)=9),Ne1Zář+27,\"\"),IF(AND(YEAR(Ne1Zář+34)=RokKalendáře,MONTH(Ne1Zář+34)=9),Ne1Zář+34,\"\"))","v":"2018-09-29"},{"$f":"IF(DAY(Ne1Zář)=1,IF(AND(YEAR(Ne1Zář+28)=RokKalendáře,MONTH(Ne1Zář+28)=9),Ne1Zář+28,\"\"),IF(AND(YEAR(Ne1Zář+35)=RokKalendáře,MONTH(Ne1Zář+35)=9),Ne1Zář+35,\"\"))","v":"2018-09-30"}]
[]
[null,{"$f":"IF(DAY(Ne1Zář)=1,IF(AND(YEAR(Ne1Zář+29)=RokKalendáře,MONTH(Ne1Zář+29)=9),Ne1Zář+29,\"\"),IF(AND(YEAR(Ne1Zář+36)=RokKalendáře,MONTH(Ne1Zář+36)=9),Ne1Zář+36,\"\"))","v":""},{"$f":"IF(DAY(Ne1Zář)=1,IF(AND(YEAR(Ne1Zář+30)=RokKalendáře,MONTH(Ne1Zář+30)=9),Ne1Zář+30,\"\"),IF(AND(YEAR(Ne1Zář+37)=RokKalendáře,MONTH(Ne1Zář+37)=9),Ne1Zář+37,\"\"))","v":""},"POZNÁMKY:"]

{"sheet":"Říjen","index":9,"n_rows":15,"n_cols":8,"rows_kept":15,"merged":[[2,1,2,5],[14,3,14,7],[15,3,15,7]]}
[]
[]
[null,{"$f":"UPPER(TEXT(DATE(RokKalendáře,10,1),\"mmmm rrrr\"))","v":"ŘÍJEN 2018"}]
[null,"PONDĚLÍ","ÚTERÝ","STŘEDA","ČTVRTEK","PÁTEK","SOBOTA","NEDĚLE"]
[null,{"$f":"IF(DAY(Ne1Říj)=1,\"\",IF(AND(YEAR(Ne1Říj+1)=RokKalendáře,MONTH(Ne1Říj+1)=10),Ne1Říj+1,\"\"))","v":"2018-10-01"},{"$f":"IF(DAY(Ne1Říj)=1,\"\",IF(AND(YEAR(Ne1Říj+2)=RokKalendáře,MONTH(Ne1Říj+2)=10),Ne1Říj+2,\"\"))","v":"2018-10-02"},{"$f":"IF(DAY(Ne1Říj)=1,\"\",IF(AND(YEAR(Ne1Říj+3)=RokKalendáře,MONTH(Ne1Říj+3)=10),Ne1Říj+3,\"\"))","v":"2018-10-03"},{"$f":"IF(DAY(Ne1Říj)=1,\"\",IF(AND(YEAR(Ne1Říj+4)=RokKalendáře,MONTH(Ne1Říj+4)=10),Ne1Říj+4,\"\"))","v":"2018-10-04"},{"$f":"IF(DAY(Ne1Říj)=1,\"\",IF(AND(YEAR(Ne1Říj+5)=RokKalendáře,MONTH(Ne1Říj+5)=10),Ne1Říj+5,\"\"))","v":"2018-10-05"},{"$f":"IF(DAY(Ne1Říj)=1,\"\",IF(AND(YEAR(Ne1Říj+6)=RokKalendáře,MONTH(Ne1Říj+6)=10),Ne1Říj+6,\"\"))","v":"2018-10-06"},{"$f":"IF(DAY(Ne1Říj)=1,IF(AND(YEAR(Ne1Říj)=RokKalendáře,MONTH(Ne1Říj)=10),Ne1Říj,\"\"),IF(AND(YEAR(Ne1Říj+7)=RokKalendáře,MONTH(Ne1Říj+7)=10),Ne1Říj+7,\"\"))","v":"2018-10-07"}]
[]
[null,{"$f":"IF(DAY(Ne1Říj)=1,IF(AND(YEAR(Ne1Říj+1)=RokKalendáře,MONTH(Ne1Říj+1)=10),Ne1Říj+1,\"\"),IF(AND(YEAR(Ne1Říj+8)=RokKalendáře,MONTH(Ne1Říj+8)=10),Ne1Říj+8,\"\"))","v":"2018-10-08"},{"$f":"IF(DAY(Ne1Říj)=1,IF(AND(YEAR(Ne1Říj+2)=RokKalendáře,MONTH(Ne1Říj+2)=10),Ne1Říj+2,\"\"),IF(AND(YEAR(Ne1Říj+9)=RokKalendáře,MONTH(Ne1Říj+9)=10),Ne1Říj+9,\"\"))","v":"2018-10-09"},{"$f":"IF(DAY(Ne1Říj)=1,IF(AND(YEAR(Ne1Říj+3)=RokKalendáře,MONTH(Ne1Říj+3)=10),Ne1Říj+3,\"\"),IF(AND(YEAR(Ne1Říj+10)=RokKalendáře,MONTH(Ne1Říj+10)=10),Ne1Říj+10,\"\"))","v":"2018-10-10"},{"$f":"IF(DAY(Ne1Říj)=1,IF(AND(YEAR(Ne1Říj+4)=RokKalendáře,MONTH(Ne1Říj+4)=10),Ne1Říj+4,\"\"),IF(AND(YEAR(Ne1Říj+11)=RokKalendáře,MONTH(Ne1Říj+11)=10),Ne1Říj+11,\"\"))","v":"2018-10-11"},{"$f":"IF(DAY(Ne1Říj)=1,IF(AND(YEAR(Ne1Říj+5)=RokKalendáře,MONTH(Ne1Říj+5)=10),Ne1Říj+5,\"\"),IF(AND(YEAR(Ne1Říj+12)=RokKalendáře,MONTH(Ne1Říj+12)=10),Ne1Říj+12,\"\"))","v":"2018-10-12"},{"$f":"IF(DAY(Ne1Říj)=1,IF(AND(YEAR(Ne1Říj+6)=RokKalendáře,MONTH(Ne1Říj+6)=10),Ne1Říj+6,\"\"),IF(AND(YEAR(Ne1Říj+13)=RokKalendáře,MONTH(Ne1Říj+13)=10),Ne1Říj+13,\"\"))","v":"2018-10-13"},{"$f":"IF(DAY(Ne1Říj)=1,IF(AND(YEAR(Ne1Říj+7)=RokKalendáře,MONTH(Ne1Říj+7)=10),Ne1Říj+7,\"\"),IF(AND(YEAR(Ne1Říj+14)=RokKalendáře,MONTH(Ne1Říj+14)=10),Ne1Říj+14,\"\"))","v":"2018-10-14"}]
[]
[null,{"$f":"IF(DAY(Ne1Říj)=1,IF(AND(YEAR(Ne1Říj+8)=RokKalendáře,MONTH(Ne1Říj+8)=10),Ne1Říj+8,\"\"),IF(AND(YEAR(Ne1Říj+15)=RokKalendáře,MONTH(Ne1Říj+15)=10),Ne1Říj+15,\"\"))","v":"2018-10-15"},{"$f":"IF(DAY(Ne1Říj)=1,IF(AND(YEAR(Ne1Říj+9)=RokKalendáře,MONTH(Ne1Říj+9)=10),Ne1Říj+9,\"\"),IF(AND(YEAR(Ne1Říj+16)=RokKalendáře,MONTH(Ne1Říj+16)=10),Ne1Říj+16,\"\"))","v":"2018-10-16"},{"$f":"IF(DAY(Ne1Říj)=1,IF(AND(YEAR(Ne1Říj+10)=RokKalendáře,MONTH(Ne1Říj+10)=10),Ne1Říj+10,\"\"),IF(AND(YEAR(Ne1Říj+17)=RokKalendáře,MONTH(Ne1Říj+17)=10),Ne1Říj+17,\"\"))","v":"2018-10-17"},{"$f":"IF(DAY(Ne1Říj)=1,IF(AND(YEAR(Ne1Říj+11)=RokKalendáře,MONTH(Ne1Říj+11)=10),Ne1Říj+11,\"\"),IF(AND(YEAR(Ne1Říj+18)=RokKalendáře,MONTH(Ne1Říj+18)=10),Ne1Říj+18,\"\"))","v":"2018-10-18"},{"$f":"IF(DAY(Ne1Říj)=1,IF(AND(YEAR(Ne1Říj+12)=RokKalendáře,MONTH(Ne1Říj+12)=10),Ne1Říj+12,\"\"),IF(AND(YEAR(Ne1Říj+19)=RokKalendáře,MONTH(Ne1Říj+19)=10),Ne1Říj+19,\"\"))","v":"2018-10-19"},{"$f":"IF(DAY(Ne1Říj)=1,IF(AND(YEAR(Ne1Říj+13)=RokKalendáře,MONTH(Ne1Říj+13)=10),Ne1Říj+13,\"\"),IF(AND(YEAR(Ne1Říj+20)=RokKalendáře,MONTH(Ne1Říj+20)=10),Ne1Říj+20,\"\"))","v":"2018-10-20"},{"$f":"IF(DAY(Ne1Říj)=1,IF(AND(YEAR(Ne1Říj+14)=RokKalendáře,MONTH(Ne1Říj+14)=10),Ne1Říj+14,\"\"),IF(AND(YEAR(Ne1Říj+21)=RokKalendáře,MONTH(Ne1Říj+21)=10),Ne1Říj+21,\"\"))","v":"2018-10-21"}]
[]
[null,{"$f":"IF(DAY(Ne1Říj)=1,IF(AND(YEAR(Ne1Říj+15)=RokKalendáře,MONTH(Ne1Říj+15)=10),Ne1Říj+15,\"\"),IF(AND(YEAR(Ne1Říj+22)=RokKalendáře,MONTH(Ne1Říj+22)=10),Ne1Říj+22,\"\"))","v":"2018-10-22"},{"$f":"IF(DAY(Ne1Říj)=1,IF(AND(YEAR(Ne1Říj+16)=RokKalendáře,MONTH(Ne1Říj+16)=10),Ne1Říj+16,\"\"),IF(AND(YEAR(Ne1Říj+23)=RokKalendáře,MONTH(Ne1Říj+23)=10),Ne1Říj+23,\"\"))","v":"2018-10-23"},{"$f":"IF(DAY(Ne1Říj)=1,IF(AND(YEAR(Ne1Říj+17)=RokKalendáře,MONTH(Ne1Říj+17)=10),Ne1Říj+17,\"\"),IF(AND(YEAR(Ne1Říj+24)=RokKalendáře,MONTH(Ne1Říj+24)=10),Ne1Říj+24,\"\"))","v":"2018-10-24"},{"$f":"IF(DAY(Ne1Říj)=1,IF(AND(YEAR(Ne1Říj+18)=RokKalendáře,MONTH(Ne1Říj+18)=10),Ne1Říj+18,\"\"),IF(AND(YEAR(Ne1Říj+25)=RokKalendáře,MONTH(Ne1Říj+25)=10),Ne1Říj+25,\"\"))","v":"2018-10-25"},{"$f":"IF(DAY(Ne1Říj)=1,IF(AND(YEAR(Ne1Říj+19)=RokKalendáře,MONTH(Ne1Říj+19)=10),Ne1Říj+19,\"\"),IF(AND(YEAR(Ne1Říj+26)=RokKalendáře,MONTH(Ne1Říj+26)=10),Ne1Říj+26,\"\"))","v":"2018-10-26"},{"$f":"IF(DAY(Ne1Říj)=1,IF(AND(YEAR(Ne1Říj+20)=RokKalendáře,MONTH(Ne1Říj+20)=10),Ne1Říj+20,\"\"),IF(AND(YEAR(Ne1Říj+27)=RokKalendáře,MONTH(Ne1Říj+27)=10),Ne1Říj+27,\"\"))","v":"2018-10-27"},{"$f":"IF(DAY(Ne1Říj)=1,IF(AND(YEAR(Ne1Říj+21)=RokKalendáře,MONTH(Ne1Říj+21)=10),Ne1Říj+21,\"\"),IF(AND(YEAR(Ne1Říj+28)=RokKalendáře,MONTH(Ne1Říj+28)=10),Ne1Říj+28,\"\"))","v":"2018-10-28"}]
[]
[null,{"$f":"IF(DAY(Ne1Říj)=1,IF(AND(YEAR(Ne1Říj+22)=RokKalendáře,MONTH(Ne1Říj+22)=10),Ne1Říj+22,\"\"),IF(AND(YEAR(Ne1Říj+29)=RokKalendáře,MONTH(Ne1Říj+29)=10),Ne1Říj+29,\"\"))","v":"2018-10-29"},{"$f":"IF(DAY(Ne1Říj)=1,IF(AND(YEAR(Ne1Říj+23)=RokKalendáře,MONTH(Ne1Říj+23)=10),Ne1Říj+23,\"\"),IF(AND(YEAR(Ne1Říj+30)=RokKalendáře,MONTH(Ne1Říj+30)=10),Ne1Říj+30,\"\"))","v":"2018-10-30"},{"$f":"IF(DAY(Ne1Říj)=1,IF(AND(YEAR(Ne1Říj+24)=RokKalendáře,MONTH(Ne1Říj+24)=10),Ne1Říj+24,\"\"),IF(AND(YEAR(Ne1Říj+31)=RokKalendáře,MONTH(Ne1Říj+31)=10),Ne1Říj+31,\"\"))","v":"2018-10-31"},{"$f":"IF(DAY(Ne1Říj)=1,IF(AND(YEAR(Ne1Říj+25)=RokKalendáře,MONTH(Ne1Říj+25)=10),Ne1Říj+25,\"\"),IF(AND(YEAR(Ne1Říj+32)=RokKalendáře,MONTH(Ne1Říj+32)=10),Ne1Říj+32,\"\"))","v":""},{"$f":"IF(DAY(Ne1Říj)=1,IF(AND(YEAR(Ne1Říj+26)=RokKalendáře,MONTH(Ne1Říj+26)=10),Ne1Říj+26,\"\"),IF(AND(YEAR(Ne1Říj+33)=RokKalendáře,MONTH(Ne1Říj+33)=10),Ne1Říj+33,\"\"))","v":""},{"$f":"IF(DAY(Ne1Říj)=1,IF(AND(YEAR(Ne1Říj+27)=RokKalendáře,MONTH(Ne1Říj+27)=10),Ne1Říj+27,\"\"),IF(AND(YEAR(Ne1Říj+34)=RokKalendáře,MONTH(Ne1Říj+34)=10),Ne1Říj+34,\"\"))","v":""},{"$f":"IF(DAY(Ne1Říj)=1,IF(AND(YEAR(Ne1Říj+28)=RokKalendáře,MONTH(Ne1Říj+28)=10),Ne1Říj+28,\"\"),IF(AND(YEAR(Ne1Říj+35)=RokKalendáře,MONTH(Ne1Říj+35)=10),Ne1Říj+35,\"\"))","v":""}]
[]
[null,{"$f":"IF(DAY(Ne1Říj)=1,IF(AND(YEAR(Ne1Říj+29)=RokKalendáře,MONTH(Ne1Říj+29)=10),Ne1Říj+29,\"\"),IF(AND(YEAR(Ne1Říj+36)=RokKalendáře,MONTH(Ne1Říj+36)=10),Ne1Říj+36,\"\"))","v":""},{"$f":"IF(DAY(Ne1Říj)=1,IF(AND(YEAR(Ne1Říj+30)=RokKalendáře,MONTH(Ne1Říj+30)=10),Ne1Říj+30,\"\"),IF(AND(YEAR(Ne1Říj+37)=RokKalendáře,MONTH(Ne1Říj+37)=10),Ne1Říj+37,\"\"))","v":""},"POZNÁMKY:"]

{"sheet":"Listopad","index":10,"n_rows":15,"n_cols":8,"rows_kept":15,"merged":[[2,1,2,5],[14,3,14,7],[15,3,15,7]]}
[]
[]
[null,{"$f":"UPPER(TEXT(DATE(RokKalendáře,11,1),\"mmmm rrrr\"))","v":"LISTOPAD 2018"}]
[null,"PONDĚLÍ","ÚTERÝ","STŘEDA","ČTVRTEK","PÁTEK","SOBOTA","NEDĚLE"]
[null,{"$f":"IF(DAY(Ne1Lis)=1,\"\",IF(AND(YEAR(Ne1Lis+1)=RokKalendáře,MONTH(Ne1Lis+1)=11),Ne1Lis+1,\"\"))","v":""},{"$f":"IF(DAY(Ne1Lis)=1,\"\",IF(AND(YEAR(Ne1Lis+2)=RokKalendáře,MONTH(Ne1Lis+2)=11),Ne1Lis+2,\"\"))","v":""},{"$f":"IF(DAY(Ne1Lis)=1,\"\",IF(AND(YEAR(Ne1Lis+3)=RokKalendáře,MONTH(Ne1Lis+3)=11),Ne1Lis+3,\"\"))","v":""},{"$f":"IF(DAY(Ne1Lis)=1,\"\",IF(AND(YEAR(Ne1Lis+4)=RokKalendáře,MONTH(Ne1Lis+4)=11),Ne1Lis+4,\"\"))","v":"2018-11-01"},{"$f":"IF(DAY(Ne1Lis)=1,\"\",IF(AND(YEAR(Ne1Lis+5)=RokKalendáře,MONTH(Ne1Lis+5)=11),Ne1Lis+5,\"\"))","v":"2018-11-02"},{"$f":"IF(DAY(Ne1Lis)=1,\"\",IF(AND(YEAR(Ne1Lis+6)=RokKalendáře,MONTH(Ne1Lis+6)=11),Ne1Lis+6,\"\"))","v":"2018-11-03"},{"$f":"IF(DAY(Ne1Lis)=1,IF(AND(YEAR(Ne1Lis)=RokKalendáře,MONTH(Ne1Lis)=11),Ne1Lis,\"\"),IF(AND(YEAR(Ne1Lis+7)=RokKalendáře,MONTH(Ne1Lis+7)=11),Ne1Lis+7,\"\"))","v":"2018-11-04"}]
[]
[null,{"$f":"IF(DAY(Ne1Lis)=1,IF(AND(YEAR(Ne1Lis+1)=RokKalendáře,MONTH(Ne1Lis+1)=11),Ne1Lis+1,\"\"),IF(AND(YEAR(Ne1Lis+8)=RokKalendáře,MONTH(Ne1Lis+8)=11),Ne1Lis+8,\"\"))","v":"2018-11-05"},{"$f":"IF(DAY(Ne1Lis)=1,IF(AND(YEAR(Ne1Lis+2)=RokKalendáře,MONTH(Ne1Lis+2)=11),Ne1Lis+2,\"\"),IF(AND(YEAR(Ne1Lis+9)=RokKalendáře,MONTH(Ne1Lis+9)=11),Ne1Lis+9,\"\"))","v":"2018-11-06"},{"$f":"IF(DAY(Ne1Lis)=1,IF(AND(YEAR(Ne1Lis+3)=RokKalendáře,MONTH(Ne1Lis+3)=11),Ne1Lis+3,\"\"),IF(AND(YEAR(Ne1Lis+10)=RokKalendáře,MONTH(Ne1Lis+10)=11),Ne1Lis+10,\"\"))","v":"2018-11-07"},{"$f":"IF(DAY(Ne1Lis)=1,IF(AND(YEAR(Ne1Lis+4)=RokKalendáře,MONTH(Ne1Lis+4)=11),Ne1Lis+4,\"\"),IF(AND(YEAR(Ne1Lis+11)=RokKalendáře,MONTH(Ne1Lis+11)=11),Ne1Lis+11,\"\"))","v":"2018-11-08"},{"$f":"IF(DAY(Ne1Lis)=1,IF(AND(YEAR(Ne1Lis+5)=RokKalendáře,MONTH(Ne1Lis+5)=11),Ne1Lis+5,\"\"),IF(AND(YEAR(Ne1Lis+12)=RokKalendáře,MONTH(Ne1Lis+12)=11),Ne1Lis+12,\"\"))","v":"2018-11-09"},{"$f":"IF(DAY(Ne1Lis)=1,IF(AND(YEAR(Ne1Lis+6)=RokKalendáře,MONTH(Ne1Lis+6)=11),Ne1Lis+6,\"\"),IF(AND(YEAR(Ne1Lis+13)=RokKalendáře,MONTH(Ne1Lis+13)=11),Ne1Lis+13,\"\"))","v":"2018-11-10"},{"$f":"IF(DAY(Ne1Lis)=1,IF(AND(YEAR(Ne1Lis+7)=RokKalendáře,MONTH(Ne1Lis+7)=11),Ne1Lis+7,\"\"),IF(AND(YEAR(Ne1Lis+14)=RokKalendáře,MONTH(Ne1Lis+14)=11),Ne1Lis+14,\"\"))","v":"2018-11-11"}]
[]
[null,{"$f":"IF(DAY(Ne1Lis)=1,IF(AND(YEAR(Ne1Lis+8)=RokKalendáře,MONTH(Ne1Lis+8)=11),Ne1Lis+8,\"\"),IF(AND(YEAR(Ne1Lis+15)=RokKalendáře,MONTH(Ne1Lis+15)=11),Ne1Lis+15,\"\"))","v":"2018-11-12"},{"$f":"IF(DAY(Ne1Lis)=1,IF(AND(YEAR(Ne1Lis+9)=RokKalendáře,MONTH(Ne1Lis+9)=11),Ne1Lis+9,\"\"),IF(AND(YEAR(Ne1Lis+16)=RokKalendáře,MONTH(Ne1Lis+16)=11),Ne1Lis+16,\"\"))","v":"2018-11-13"},{"$f":"IF(DAY(Ne1Lis)=1,IF(AND(YEAR(Ne1Lis+10)=RokKalendáře,MONTH(Ne1Lis+10)=11),Ne1Lis+10,\"\"),IF(AND(YEAR(Ne1Lis+17)=RokKalendáře,MONTH(Ne1Lis+17)=11),Ne1Lis+17,\"\"))","v":"2018-11-14"},{"$f":"IF(DAY(Ne1Lis)=1,IF(AND(YEAR(Ne1Lis+11)=RokKalendáře,MONTH(Ne1Lis+11)=11),Ne1Lis+11,\"\"),IF(AND(YEAR(Ne1Lis+18)=RokKalendáře,MONTH(Ne1Lis+18)=11),Ne1Lis+18,\"\"))","v":"2018-11-15"},{"$f":"IF(DAY(Ne1Lis)=1,IF(AND(YEAR(Ne1Lis+12)=RokKalendáře,MONTH(Ne1Lis+12)=11),Ne1Lis+12,\"\"),IF(AND(YEAR(Ne1Lis+19)=RokKalendáře,MONTH(Ne1Lis+19)=11),Ne1Lis+19,\"\"))","v":"2018-11-16"},{"$f":"IF(DAY(Ne1Lis)=1,IF(AND(YEAR(Ne1Lis+13)=RokKalendáře,MONTH(Ne1Lis+13)=11),Ne1Lis+13,\"\"),IF(AND(YEAR(Ne1Lis+20)=RokKalendáře,MONTH(Ne1Lis+20)=11),Ne1Lis+20,\"\"))","v":"2018-11-17"},{"$f":"IF(DAY(Ne1Lis)=1,IF(AND(YEAR(Ne1Lis+14)=RokKalendáře,MONTH(Ne1Lis+14)=11),Ne1Lis+14,\"\"),IF(AND(YEAR(Ne1Lis+21)=RokKalendáře,MONTH(Ne1Lis+21)=11),Ne1Lis+21,\"\"))","v":"2018-11-18"}]
[]
[null,{"$f":"IF(DAY(Ne1Lis)=1,IF(AND(YEAR(Ne1Lis+15)=RokKalendáře,MONTH(Ne1Lis+15)=11),Ne1Lis+15,\"\"),IF(AND(YEAR(Ne1Lis+22)=RokKalendáře,MONTH(Ne1Lis+22)=11),Ne1Lis+22,\"\"))","v":"2018-11-19"},{"$f":"IF(DAY(Ne1Lis)=1,IF(AND(YEAR(Ne1Lis+16)=RokKalendáře,MONTH(Ne1Lis+16)=11),Ne1Lis+16,\"\"),IF(AND(YEAR(Ne1Lis+23)=RokKalendáře,MONTH(Ne1Lis+23)=11),Ne1Lis+23,\"\"))","v":"2018-11-20"},{"$f":"IF(DAY(Ne1Lis)=1,IF(AND(YEAR(Ne1Lis+17)=RokKalendáře,MONTH(Ne1Lis+17)=11),Ne1Lis+17,\"\"),IF(AND(YEAR(Ne1Lis+24)=RokKalendáře,MONTH(Ne1Lis+24)=11),Ne1Lis+24,\"\"))","v":"2018-11-21"},{"$f":"IF(DAY(Ne1Lis)=1,IF(AND(YEAR(Ne1Lis+18)=RokKalendáře,MONTH(Ne1Lis+18)=11),Ne1Lis+18,\"\"),IF(AND(YEAR(Ne1Lis+25)=RokKalendáře,MONTH(Ne1Lis+25)=11),Ne1Lis+25,\"\"))","v":"2018-11-22"},{"$f":"IF(DAY(Ne1Lis)=1,IF(AND(YEAR(Ne1Lis+19)=RokKalendáře,MONTH(Ne1Lis+19)=11),Ne1Lis+19,\"\"),IF(AND(YEAR(Ne1Lis+26)=RokKalendáře,MONTH(Ne1Lis+26)=11),Ne1Lis+26,\"\"))","v":"2018-11-23"},{"$f":"IF(DAY(Ne1Lis)=1,IF(AND(YEAR(Ne1Lis+20)=RokKalendáře,MONTH(Ne1Lis+20)=11),Ne1Lis+20,\"\"),IF(AND(YEAR(Ne1Lis+27)=RokKalendáře,MONTH(Ne1Lis+27)=11),Ne1Lis+27,\"\"))","v":"2018-11-24"},{"$f":"IF(DAY(Ne1Lis)=1,IF(AND(YEAR(Ne1Lis+21)=RokKalendáře,MONTH(Ne1Lis+21)=11),Ne1Lis+21,\"\"),IF(AND(YEAR(Ne1Lis+28)=RokKalendáře,MONTH(Ne1Lis+28)=11),Ne1Lis+28,\"\"))","v":"2018-11-25"}]
[]
[null,{"$f":"IF(DAY(Ne1Lis)=1,IF(AND(YEAR(Ne1Lis+22)=RokKalendáře,MONTH(Ne1Lis+22)=11),Ne1Lis+22,\"\"),IF(AND(YEAR(Ne1Lis+29)=RokKalendáře,MONTH(Ne1Lis+29)=11),Ne1Lis+29,\"\"))","v":"2018-11-26"},{"$f":"IF(DAY(Ne1Lis)=1,IF(AND(YEAR(Ne1Lis+23)=RokKalendáře,MONTH(Ne1Lis+23)=11),Ne1Lis+23,\"\"),IF(AND(YEAR(Ne1Lis+30)=RokKalendáře,MONTH(Ne1Lis+30)=11),Ne1Lis+30,\"\"))","v":"2018-11-27"},{"$f":"IF(DAY(Ne1Lis)=1,IF(AND(YEAR(Ne1Lis+24)=RokKalendáře,MONTH(Ne1Lis+24)=11),Ne1Lis+24,\"\"),IF(AND(YEAR(Ne1Lis+31)=RokKalendáře,MONTH(Ne1Lis+31)=11),Ne1Lis+31,\"\"))","v":"2018-11-28"},{"$f":"IF(DAY(Ne1Lis)=1,IF(AND(YEAR(Ne1Lis+25)=RokKalendáře,MONTH(Ne1Lis+25)=11),Ne1Lis+25,\"\"),IF(AND(YEAR(Ne1Lis+32)=RokKalendáře,MONTH(Ne1Lis+32)=11),Ne1Lis+32,\"\"))","v":"2018-11-29"},{"$f":"IF(DAY(Ne1Lis)=1,IF(AND(YEAR(Ne1Lis+26)=RokKalendáře,MONTH(Ne1Lis+26)=11),Ne1Lis+26,\"\"),IF(AND(YEAR(Ne1Lis+33)=RokKalendáře,MONTH(Ne1Lis+33)=11),Ne1Lis+33,\"\"))","v":"2018-11-30"},{"$f":"IF(DAY(Ne1Lis)=1,IF(AND(YEAR(Ne1Lis+27)=RokKalendáře,MONTH(Ne1Lis+27)=11),Ne1Lis+27,\"\"),IF(AND(YEAR(Ne1Lis+34)=RokKalendáře,MONTH(Ne1Lis+34)=11),Ne1Lis+34,\"\"))","v":""},{"$f":"IF(DAY(Ne1Lis)=1,IF(AND(YEAR(Ne1Lis+28)=RokKalendáře,MONTH(Ne1Lis+28)=11),Ne1Lis+28,\"\"),IF(AND(YEAR(Ne1Lis+35)=RokKalendáře,MONTH(Ne1Lis+35)=11),Ne1Lis+35,\"\"))","v":""}]
[]
[null,{"$f":"IF(DAY(Ne1Lis)=1,IF(AND(YEAR(Ne1Lis+29)=RokKalendáře,MONTH(Ne1Lis+29)=11),Ne1Lis+29,\"\"),IF(AND(YEAR(Ne1Lis+36)=RokKalendáře,MONTH(Ne1Lis+36)=11),Ne1Lis+36,\"\"))","v":""},{"$f":"IF(DAY(Ne1Lis)=1,IF(AND(YEAR(Ne1Lis+30)=RokKalendáře,MONTH(Ne1Lis+30)=11),Ne1Lis+30,\"\"),IF(AND(YEAR(Ne1Lis+37)=RokKalendáře,MONTH(Ne1Lis+37)=11),Ne1Lis+37,\"\"))","v":""},"POZNÁMKY:"]

{"sheet":"Prosinec","index":11,"n_rows":15,"n_cols":8,"rows_kept":15,"merged":[[2,1,2,5],[14,3,14,7],[15,3,15,7]]}
[]
[]
[null,{"$f":"UPPER(TEXT(DATE(RokKalendáře,12,1),\"mmmm rrrr\"))","v":"PROSINEC 2018"}]
[null,"PONDĚLÍ","ÚTERÝ","STŘEDA","ČTVRTEK","PÁTEK","SOBOTA","NEDĚLE"]
[null,{"$f":"IF(DAY(Ne1Pro)=1,\"\",IF(AND(YEAR(Ne1Pro+1)=RokKalendáře,MONTH(Ne1Pro+1)=12),Ne1Pro+1,\"\"))","v":""},{"$f":"IF(DAY(Ne1Pro)=1,\"\",IF(AND(YEAR(Ne1Pro+2)=RokKalendáře,MONTH(Ne1Pro+2)=12),Ne1Pro+2,\"\"))","v":""},{"$f":"IF(DAY(Ne1Pro)=1,\"\",IF(AND(YEAR(Ne1Pro+3)=RokKalendáře,MONTH(Ne1Pro+3)=12),Ne1Pro+3,\"\"))","v":""},{"$f":"IF(DAY(Ne1Pro)=1,\"\",IF(AND(YEAR(Ne1Pro+4)=RokKalendáře,MONTH(Ne1Pro+4)=12),Ne1Pro+4,\"\"))","v":""},{"$f":"IF(DAY(Ne1Pro)=1,\"\",IF(AND(YEAR(Ne1Pro+5)=RokKalendáře,MONTH(Ne1Pro+5)=12),Ne1Pro+5,\"\"))","v":""},{"$f":"IF(DAY(Ne1Pro)=1,\"\",IF(AND(YEAR(Ne1Pro+6)=RokKalendáře,MONTH(Ne1Pro+6)=12),Ne1Pro+6,\"\"))","v":"2018-12-01"},{"$f":"IF(DAY(Ne1Pro)=1,IF(AND(YEAR(Ne1Pro)=RokKalendáře,MONTH(Ne1Pro)=12),Ne1Pro,\"\"),IF(AND(YEAR(Ne1Pro+7)=RokKalendáře,MONTH(Ne1Pro+7)=12),Ne1Pro+7,\"\"))","v":"2018-12-02"}]
[]
[null,{"$f":"IF(DAY(Ne1Pro)=1,IF(AND(YEAR(Ne1Pro+1)=RokKalendáře,MONTH(Ne1Pro+1)=12),Ne1Pro+1,\"\"),IF(AND(YEAR(Ne1Pro+8)=RokKalendáře,MONTH(Ne1Pro+8)=12),Ne1Pro+8,\"\"))","v":"2018-12-03"},{"$f":"IF(DAY(Ne1Pro)=1,IF(AND(YEAR(Ne1Pro+2)=RokKalendáře,MONTH(Ne1Pro+2)=12),Ne1Pro+2,\"\"),IF(AND(YEAR(Ne1Pro+9)=RokKalendáře,MONTH(Ne1Pro+9)=12),Ne1Pro+9,\"\"))","v":"2018-12-04"},{"$f":"IF(DAY(Ne1Pro)=1,IF(AND(YEAR(Ne1Pro+3)=RokKalendáře,MONTH(Ne1Pro+3)=12),Ne1Pro+3,\"\"),IF(AND(YEAR(Ne1Pro+10)=RokKalendáře,MONTH(Ne1Pro+10)=12),Ne1Pro+10,\"\"))","v":"2018-12-05"},{"$f":"IF(DAY(Ne1Pro)=1,IF(AND(YEAR(Ne1Pro+4)=RokKalendáře,MONTH(Ne1Pro+4)=12),Ne1Pro+4,\"\"),IF(AND(YEAR(Ne1Pro+11)=RokKalendáře,MONTH(Ne1Pro+11)=12),Ne1Pro+11,\"\"))","v":"2018-12-06"},{"$f":"IF(DAY(Ne1Pro)=1,IF(AND(YEAR(Ne1Pro+5)=RokKalendáře,MONTH(Ne1Pro+5)=12),Ne1Pro+5,\"\"),IF(AND(YEAR(Ne1Pro+12)=RokKalendáře,MONTH(Ne1Pro+12)=12),Ne1Pro+12,\"\"))","v":"2018-12-07"},{"$f":"IF(DAY(Ne1Pro)=1,IF(AND(YEAR(Ne1Pro+6)=RokKalendáře,MONTH(Ne1Pro+6)=12),Ne1Pro+6,\"\"),IF(AND(YEAR(Ne1Pro+13)=RokKalendáře,MONTH(Ne1Pro+13)=12),Ne1Pro+13,\"\"))","v":"2018-12-08"},{"$f":"IF(DAY(Ne1Pro)=1,IF(AND(YEAR(Ne1Pro+7)=RokKalendáře,MONTH(Ne1Pro+7)=12),Ne1Pro+7,\"\"),IF(AND(YEAR(Ne1Pro+14)=RokKalendáře,MONTH(Ne1Pro+14)=12),Ne1Pro+14,\"\"))","v":"2018-12-09"}]
[]
[null,{"$f":"IF(DAY(Ne1Pro)=1,IF(AND(YEAR(Ne1Pro+8)=RokKalendáře,MONTH(Ne1Pro+8)=12),Ne1Pro+8,\"\"),IF(AND(YEAR(Ne1Pro+15)=RokKalendáře,MONTH(Ne1Pro+15)=12),Ne1Pro+15,\"\"))","v":"2018-12-10"},{"$f":"IF(DAY(Ne1Pro)=1,IF(AND(YEAR(Ne1Pro+9)=RokKalendáře,MONTH(Ne1Pro+9)=12),Ne1Pro+9,\"\"),IF(AND(YEAR(Ne1Pro+16)=RokKalendáře,MONTH(Ne1Pro+16)=12),Ne1Pro+16,\"\"))","v":"2018-12-11"},{"$f":"IF(DAY(Ne1Pro)=1,IF(AND(YEAR(Ne1Pro+10)=RokKalendáře,MONTH(Ne1Pro+10)=12),Ne1Pro+10,\"\"),IF(AND(YEAR(Ne1Pro+17)=RokKalendáře,MONTH(Ne1Pro+17)=12),Ne1Pro+17,\"\"))","v":"2018-12-12"},{"$f":"IF(DAY(Ne1Pro)=1,IF(AND(YEAR(Ne1Pro+11)=RokKalendáře,MONTH(Ne1Pro+11)=12),Ne1Pro+11,\"\"),IF(AND(YEAR(Ne1Pro+18)=RokKalendáře,MONTH(Ne1Pro+18)=12),Ne1Pro+18,\"\"))","v":"2018-12-13"},{"$f":"IF(DAY(Ne1Pro)=1,IF(AND(YEAR(Ne1Pro+12)=RokKalendáře,MONTH(Ne1Pro+12)=12),Ne1Pro+12,\"\"),IF(AND(YEAR(Ne1Pro+19)=RokKalendáře,MONTH(Ne1Pro+19)=12),Ne1Pro+19,\"\"))","v":"2018-12-14"},{"$f":"IF(DAY(Ne1Pro)=1,IF(AND(YEAR(Ne1Pro+13)=RokKalendáře,MONTH(Ne1Pro+13)=12),Ne1Pro+13,\"\"),IF(AND(YEAR(Ne1Pro+20)=RokKalendáře,MONTH(Ne1Pro+20)=12),Ne1Pro+20,\"\"))","v":"2018-12-15"},{"$f":"IF(DAY(Ne1Pro)=1,IF(AND(YEAR(Ne1Pro+14)=RokKalendáře,MONTH(Ne1Pro+14)=12),Ne1Pro+14,\"\"),IF(AND(YEAR(Ne1Pro+21)=RokKalendáře,MONTH(Ne1Pro+21)=12),Ne1Pro+21,\"\"))","v":"2018-12-16"}]
[]
[null,{"$f":"IF(DAY(Ne1Pro)=1,IF(AND(YEAR(Ne1Pro+15)=RokKalendáře,MONTH(Ne1Pro+15)=12),Ne1Pro+15,\"\"),IF(AND(YEAR(Ne1Pro+22)=RokKalendáře,MONTH(Ne1Pro+22)=12),Ne1Pro+22,\"\"))","v":"2018-12-17"},{"$f":"IF(DAY(Ne1Pro)=1,IF(AND(YEAR(Ne1Pro+16)=RokKalendáře,MONTH(Ne1Pro+16)=12),Ne1Pro+16,\"\"),IF(AND(YEAR(Ne1Pro+23)=RokKalendáře,MONTH(Ne1Pro+23)=12),Ne1Pro+23,\"\"))","v":"2018-12-18"},{"$f":"IF(DAY(Ne1Pro)=1,IF(AND(YEAR(Ne1Pro+17)=RokKalendáře,MONTH(Ne1Pro+17)=12),Ne1Pro+17,\"\"),IF(AND(YEAR(Ne1Pro+24)=RokKalendáře,MONTH(Ne1Pro+24)=12),Ne1Pro+24,\"\"))","v":"2018-12-19"},{"$f":"IF(DAY(Ne1Pro)=1,IF(AND(YEAR(Ne1Pro+18)=RokKalendáře,MONTH(Ne1Pro+18)=12),Ne1Pro+18,\"\"),IF(AND(YEAR(Ne1Pro+25)=RokKalendáře,MONTH(Ne1Pro+25)=12),Ne1Pro+25,\"\"))","v":"2018-12-20"},{"$f":"IF(DAY(Ne1Pro)=1,IF(AND(YEAR(Ne1Pro+19)=RokKalendáře,MONTH(Ne1Pro+19)=12),Ne1Pro+19,\"\"),IF(AND(YEAR(Ne1Pro+26)=RokKalendáře,MONTH(Ne1Pro+26)=12),Ne1Pro+26,\"\"))","v":"2018-12-21"},{"$f":"IF(DAY(Ne1Pro)=1,IF(AND(YEAR(Ne1Pro+20)=RokKalendáře,MONTH(Ne1Pro+20)=12),Ne1Pro+20,\"\"),IF(AND(YEAR(Ne1Pro+27)=RokKalendáře,MONTH(Ne1Pro+27)=12),Ne1Pro+27,\"\"))","v":"2018-12-22"},{"$f":"IF(DAY(Ne1Pro)=1,IF(AND(YEAR(Ne1Pro+21)=RokKalendáře,MONTH(Ne1Pro+21)=12),Ne1Pro+21,\"\"),IF(AND(YEAR(Ne1Pro+28)=RokKalendáře,MONTH(Ne1Pro+28)=12),Ne1Pro+28,\"\"))","v":"2018-12-23"}]
[]
[null,{"$f":"IF(DAY(Ne1Pro)=1,IF(AND(YEAR(Ne1Pro+22)=RokKalendáře,MONTH(Ne1Pro+22)=12),Ne1Pro+22,\"\"),IF(AND(YEAR(Ne1Pro+29)=RokKalendáře,MONTH(Ne1Pro+29)=12),Ne1Pro+29,\"\"))","v":"2018-12-24"},{"$f":"IF(DAY(Ne1Pro)=1,IF(AND(YEAR(Ne1Pro+23)=RokKalendáře,MONTH(Ne1Pro+23)=12),Ne1Pro+23,\"\"),IF(AND(YEAR(Ne1Pro+30)=RokKalendáře,MONTH(Ne1Pro+30)=12),Ne1Pro+30,\"\"))","v":"2018-12-25"},{"$f":"IF(DAY(Ne1Pro)=1,IF(AND(YEAR(Ne1Pro+24)=RokKalendáře,MONTH(Ne1Pro+24)=12),Ne1Pro+24,\"\"),IF(AND(YEAR(Ne1Pro+31)=RokKalendáře,MONTH(Ne1Pro+31)=12),Ne1Pro+31,\"\"))","v":"2018-12-26"},{"$f":"IF(DAY(Ne1Pro)=1,IF(AND(YEAR(Ne1Pro+25)=RokKalendáře,MONTH(Ne1Pro+25)=12),Ne1Pro+25,\"\"),IF(AND(YEAR(Ne1Pro+32)=RokKalendáře,MONTH(Ne1Pro+32)=12),Ne1Pro+32,\"\"))","v":"2018-12-27"},{"$f":"IF(DAY(Ne1Pro)=1,IF(AND(YEAR(Ne1Pro+26)=RokKalendáře,MONTH(Ne1Pro+26)=12),Ne1Pro+26,\"\"),IF(AND(YEAR(Ne1Pro+33)=RokKalendáře,MONTH(Ne1Pro+33)=12),Ne1Pro+33,\"\"))","v":"2018-12-28"},{"$f":"IF(DAY(Ne1Pro)=1,IF(AND(YEAR(Ne1Pro+27)=RokKalendáře,MONTH(Ne1Pro+27)=12),Ne1Pro+27,\"\"),IF(AND(YEAR(Ne1Pro+34)=RokKalendáře,MONTH(Ne1Pro+34)=12),Ne1Pro+34,\"\"))","v":"2018-12-29"},{"$f":"IF(DAY(Ne1Pro)=1,IF(AND(YEAR(Ne1Pro+28)=RokKalendáře,MONTH(Ne1Pro+28)=12),Ne1Pro+28,\"\"),IF(AND(YEAR(Ne1Pro+35)=RokKalendáře,MONTH(Ne1Pro+35)=12),Ne1Pro+35,\"\"))","v":"2018-12-30"}]
[]
[null,{"$f":"IF(DAY(Ne1Pro)=1,IF(AND(YEAR(Ne1Pro+29)=RokKalendáře,MONTH(Ne1Pro+29)=12),Ne1Pro+29,\"\"),IF(AND(YEAR(Ne1Pro+36)=RokKalendáře,MONTH(Ne1Pro+36)=12),Ne1Pro+36,\"\"))","v":"2018-12-31"},{"$f":"IF(DAY(Ne1Pro)=1,IF(AND(YEAR(Ne1Pro+30)=RokKalendáře,MONTH(Ne1Pro+30)=12),Ne1Pro+30,\"\"),IF(AND(YEAR(Ne1Pro+37)=RokKalendáře,MONTH(Ne1Pro+37)=12),Ne1Pro+37,\"\"))","v":""},"POZNÁMKY:"]